Body Name,Body,Service Level,Expense Type,Expense Code,Narrative,Date,Transaction Number,Amount,Capital and Revenue,Supplier Name,Supplier ID
South Ribble Council,http://statistics.data.gov.uk/doc/local-authority/30UN,HR & Communications,Training Expense-Course Fees,1402,NAME REDACTED TO ATTEND ` TRAIN THE TRAINER MANUAL HANDLING` COURSE ON 28 & 29 MAY 2019,26/07/2019,0000448240,375.00,Revenue,ABERTAY INTERNATIONAL TRAINING LTD,132827
South Ribble Council,http://statistics.data.gov.uk/doc/local-authority/30UN,Homelessness,Contractors Charges 5,5313,void loss 2018/19,05/07/2019,0000447934,"2,028.53",Revenue,ACCENT FOUNDATION,00015820
South Ribble Council,http://statistics.data.gov.uk/doc/local-authority/30UN,Homelessness,Contractors Charges 5,5311,2018/19 management fee at ADDRESS REDACTED,05/07/2019,0000447966,"1,500.00",Revenue,ACCENT FOUNDATION,00015820
South Ribble Council,http://statistics.data.gov.uk/doc/local-authority/30UN,Information Services,Peripherals,4241,"IPad 11"" 64GB wifi +cellular",03/07/2019,0000448041,"1,518.00",Revenue,ACS SYSTEMS UK LTD,00070166
South Ribble Council,http://statistics.data.gov.uk/doc/local-authority/30UN,Information Services,Peripherals,4241,Folio keyboard case,03/07/2019,0000448041,298.00,Revenue,ACS SYSTEMS UK LTD,00070166
South Ribble Council,http://statistics.data.gov.uk/doc/local-authority/30UN,Information Services,Peripherals,4241,"Samsung Galaxy note 8 64GB 452.00 and Otterbox defender rugged case 32.00, as per quote SR note 020719",19/07/2019,0000448363,484.00,Revenue,ACS SYSTEMS UK LTD,00070166
South Ribble Council,http://statistics.data.gov.uk/doc/local-authority/30UN,Healthy Communities,Professional Fees,4510,47 Hours @ 320 Totalling 940 Dance Coaching,24/07/2019,0000448216,940.00,Revenue,Alexandra McKenna,132786
South Ribble Council,http://statistics.data.gov.uk/doc/local-authority/30UN,Revenues Plus,Financial,4811,post office trans,05/07/2019,0000448129,"1,018.18",Revenue,ALLPAY LTD,00122276
South Ribble Council,http://statistics.data.gov.uk/doc/local-authority/30UN,Revenues Plus,Financial,4811,paypoint,05/07/2019,0000448129,156.51,Revenue,ALLPAY LTD,00122276
South Ribble Council,http://statistics.data.gov.uk/doc/local-authority/30UN,Revenues Plus,Financial,4811,webcon,05/07/2019,0000448129,48.82,Revenue,ALLPAY LTD,00122276
South Ribble Council,http://statistics.data.gov.uk/doc/local-authority/30UN,Regeneration,Other Misc,4861,Design of the 5th Heritage Trail Leaflet - Circular,24/07/2019,0000448241,300.00,Revenue,Andrew Allen,131969
South Ribble Council,http://statistics.data.gov.uk/doc/local-authority/30UN,Housing,Cap Grant- Improve Grants,C570,DFG WORKS TO BATHROOM AND RAMP AT ADDRESS REDACTED CLIENT CONTRIBUTION OF 2426.54 GRANT PAYABLE 8878.58,24/07/2019,0000448447,"8,878.58",Revenue,APG DOMESTIC SERVICES,00061463
South Ribble Council,http://statistics.data.gov.uk/doc/local-authority/30UN,Housing,Cap Grant- Improve Grants,C570,DFG WORKS TO BATHROOM AT ADDRESS REDACTED AS PER QUOTE SUPPLIED OF 5064.00 COST 5064.00,03/07/2019,0000448092,"5,064.00",Revenue,ASH BARN CONSTRUCTION LTD,00081278
South Ribble Council,http://statistics.data.gov.uk/doc/local-authority/30UN,Housing,Advertising,4842,Folders for Developers Conference Oversized A4 portrait 4 page (with `glued` pocket) ,17/07/2019,0000447602,423.00,Revenue,B & D PRINT SERVICES LTD,00015134
South Ribble Council,http://statistics.data.gov.uk/doc/local-authority/30UN,Housing,Cap Grant- Improve Grants,C570,DFG WORKS TO BATHROOM AT ADDRESS REDACTED AS PER  QUOTE SUPPLIED TOTAL COST 3945.00,12/07/2019,0000448215,"3,945.00",Revenue,Bambers Remedial Contractors Ltd,132736
South Ribble Council,http://statistics.data.gov.uk/doc/local-authority/30UN,Shared Financial Services,Balance Sheet,0030,28-Mar-19,08/07/2019,0000446791,"3,441.72",Revenue,Barclays Bank Plc,130842
South Ribble Council,http://statistics.data.gov.uk/doc/local-authority/30UN,Shared Financial Services,Balance Sheet,0030,,08/07/2019,0000447916,"3,140.74",Revenue,Barclays Bank Plc,130842
South Ribble Council,http://statistics.data.gov.uk/doc/local-authority/30UN,Property Services,Rep & Maint Premises,2020,Annual Inspection 2019/2020 for electrical testing on remainder of sports pavilions,17/07/2019,0000448260,343.09,Revenue,BELEC ELECTRICAL LTD,130290
South Ribble Council,http://statistics.data.gov.uk/doc/local-authority/30UN,Property Services,Rep & Maint Premises,2020,Annual Inspection 2019/2020 for electrical testing on remainder of sports pavilions,17/07/2019,0000448277,250.00,Revenue,BELEC ELECTRICAL LTD,130290
South Ribble Council,http://statistics.data.gov.uk/doc/local-authority/30UN,Area 3 - Parks/Leyland East West,Other Misc,48EF,Wire 3. phase supply to new four post ramp in MSD garage as per Quote SRBC -19/Moss Side Depot Garage post ramp),31/07/2019,0000448285,602.50,Revenue,BELEC ELECTRICAL LTD,130290
South Ribble Council,http://statistics.data.gov.uk/doc/local-authority/30UN,Property Services,Rep & Maint Premises,2020,Annual Inspection 2019/2020 for electrical testing on remainder of sports pavilions,19/07/2019,0000448343,337.39,Revenue,BELEC ELECTRICAL LTD,130290
South Ribble Council,http://statistics.data.gov.uk/doc/local-authority/30UN,Property Services,Rep & Maint Premises,2020,Annual Inspection 2019/2020 for electrical testing on remainder of sports pavilions,19/07/2019,0000448344,324.33,Revenue,BELEC ELECTRICAL LTD,130290
South Ribble Council,http://statistics.data.gov.uk/doc/local-authority/30UN,Property Services,Rep & Maint Premises,2020,Annual Inspection 2019/2020 for electrical testing on remainder of sports pavilions,19/07/2019,0000448345,295.88,Revenue,BELEC ELECTRICAL LTD,130290
South Ribble Council,http://statistics.data.gov.uk/doc/local-authority/30UN,Property Services,Rep & Maint Premises,2020,Annual Inspection 2019/2020 for electrical testing on remainder of sports pavilions,19/07/2019,0000448346,294.34,Revenue,BELEC ELECTRICAL LTD,130290
South Ribble Council,http://statistics.data.gov.uk/doc/local-authority/30UN,Property Services,Rep & Maint Premises,2020,Annual Inspection 2019/2020 for electrical testing on remainder of sports pavilions,19/07/2019,0000448347,250.00,Revenue,BELEC ELECTRICAL LTD,130290
South Ribble Council,http://statistics.data.gov.uk/doc/local-authority/30UN,Housing,Cap Grant- Improve Grants,C570,DFG,05/07/2019,0000448184,"1,857.61",Revenue,BELL DECORATING GROUP LIMITED,132683
South Ribble Council,http://statistics.data.gov.uk/doc/local-authority/30UN,Housing,Cap Expend Other,C750,DFG WORKS TO BATHROOM AT ADDRESS REDACTED- YOUR HOUSING GROUP PROPERTY- 50% COST PAID BY THEM,10/07/2019,0000448199,"1,899.89",Revenue,BELL DECORATING GROUP LIMITED,132683
South Ribble Council,http://statistics.data.gov.uk/doc/local-authority/30UN,Healthy Communities,Grants to Vol Bodies,4711,,26/07/2019,0000448476,250.00,Revenue,Bowmen of Pendle & Samlesbury,132502
South Ribble Council,http://statistics.data.gov.uk/doc/local-authority/30UN,Chief Executive`s Management,Other Expenses,463C,Project Team Away Day 12th - 13th April 2019 Charge for additional delegates on the above dates,24/07/2019,0000447293,290.00,Revenue,Brathay Services Ltd,132732
South Ribble Council,http://statistics.data.gov.uk/doc/local-authority/30UN,Area 3 - Parks/Leyland East West,Grounds Maint Cntrctrs Chgs,4657,12NO. BX1646-DI-RT EDINBURGH DUCTILE IRON BOLLARDS IN BLACK,10/07/2019,0000448016,"1,140.00",Revenue,BROXAP LTD,00028736
South Ribble Council,http://statistics.data.gov.uk/doc/local-authority/30UN,Area 3 - Parks/Leyland East West,Grounds Maint Cntrctrs Chgs,4657,"1NO. REFLECTIVE PANEL TO SUIT BX 1646, CLASS 2 IN RED",10/07/2019,0000448016,12.00,Revenue,BROXAP LTD,00028736
South Ribble Council,http://statistics.data.gov.uk/doc/local-authority/30UN,Area 3 - Parks/Leyland East West,Grounds Maint Cntrctrs Chgs,4657,"10NO. BXMW/PF-RT PENNY FARTHING CYCLE STANDS, ROOT FIXED, GALV ONLY",10/07/2019,0000448016,"1,710.00",Revenue,BROXAP LTD,00028736
South Ribble Council,http://statistics.data.gov.uk/doc/local-authority/30UN,Area 3 - Parks/Leyland East West,Grounds Maint Cntrctrs Chgs,4657,"DELIVERY TO ADDRESS REDACTED, LEYLAND",10/07/2019,0000448016,140.00,Revenue,BROXAP LTD,00028736
South Ribble Council,http://statistics.data.gov.uk/doc/local-authority/30UN,Environmental Health,Licence Fees,488B,FEE,26/07/2019,0000448386,"1,125.00",Revenue,Carr Street Community Centre,130312
South Ribble Council,http://statistics.data.gov.uk/doc/local-authority/30UN,Healthy Communities,Professional Fees,4510,Delivery of 3hr First Aid in Sport Course and 2 boxes of antiseptic wipes Total Cost 510.00,26/07/2019,0000448439,510.00,Revenue,Centaur Training Services (North West) Ltd,132060
South Ribble Council,http://statistics.data.gov.uk/doc/local-authority/30UN,Homelessness,Contractors Charges 5,5311,ADDRESS REDACTED 1-30/6/19 30 days  x 38.63 x 2 NAME REDACTED,17/07/2019,0000448228,"2,317.80",Revenue,CHORLEY BOROUGH COUNCIL,00017352
South Ribble Council,http://statistics.data.gov.uk/doc/local-authority/30UN,Chief Executive`s Management,Consultancy Fees,4541,SOUTH RIBBLE`S 50%  SHARE OF THE SHARED SERVICES REVIEW WORK UNDERTAKEN BY CIPFA.CO,31/07/2019,0000448572,"15,193.43",Revenue,CHORLEY BOROUGH COUNCIL,00017352
South Ribble Council,http://statistics.data.gov.uk/doc/local-authority/30UN,Property Services,Rep & Maint Premises,2020,Service Contract Price,05/07/2019,0000447784,312.00,Revenue,CHUBB LTD,00090625
South Ribble Council,http://statistics.data.gov.uk/doc/local-authority/30UN,Property Services,Rep & Maint Premises,2020,2019 / 2020 Cost for 3 x room integrity tests at the Civic Centre as per your ref SQCMMB050319-B,05/07/2019,0000448061,"1,215.30",Revenue,CHUBB LTD,00090625
South Ribble Council,http://statistics.data.gov.uk/doc/local-authority/30UN,Environmental Health,Operational Furniture & Equip,4010,Recalibration of Noise Equip as per quotation no 29425 per NAME REDACTED,12/07/2019,0000447770,413.00,Revenue,CIRRUS RESEARCH PLC,131450
South Ribble Council,http://statistics.data.gov.uk/doc/local-authority/30UN,Development Enterprise & Comm Mgnt,Contributions,4730,Funding South Ribble Citizens Advice Bureau 1 April 2019  31 March 2020 - 6 monthly monitoring reports,12/07/2019,0000448020,"20,000.00",Revenue,Citizens Advice Lancashire,00017349
South Ribble Council,http://statistics.data.gov.uk/doc/local-authority/30UN,Scrutiny,Consultancy Fees,4541,1 DAYS TRAINING ON REPORT MANAGEMENT ON 3 JULY 2019 TIME: 10 - 4 PM VENUE: SOUTH RIBBLE BOROUGH COUNCIL,24/07/2019,0000448326,650.00,Revenue,CIVICA UK LTD,00102717
South Ribble Council,http://statistics.data.gov.uk/doc/local-authority/30UN,HR & Communications,Balance Sheet,0030,APRIL 2019 - CHILDCARE VOUCHERS,08/07/2019,0000446661,"1,853.33",Revenue,COMPUTERSHARE VOUCHER SERVICES,00116499
South Ribble Council,http://statistics.data.gov.uk/doc/local-authority/30UN,Property Services,Other Misc,4421,Set up at Hunters Car Park :- Attend ADDRESS REDACTED install the ramp for the portacabin,24/07/2019,0000448407,578.24,Revenue,COOPER BESPOKE JOINERY LTD,00104456
South Ribble Council,http://statistics.data.gov.uk/doc/local-authority/30UN,Housing,Cap Grant- Improve Grants,C570,DFG WORKS TO RAMP AT ADDRESS REDACTED AS PER QUOTE SUPPLIED FOR 3310.00 ,05/07/2019,0000448169,"3,310.00",Revenue,Cornerstone Building & Maintenance Ltd,131383
South Ribble Council,http://statistics.data.gov.uk/doc/local-authority/30UN,Revenues Plus,Postage,4291,Postage - June to September 2019,03/07/2019,0000448034,591.02,Revenue,CRITIQOM,131053
South Ribble Council,http://statistics.data.gov.uk/doc/local-authority/30UN,Revenues Plus,Postage,4291,Postage - June to September 2019,05/07/2019,0000448144,902.95,Revenue,CRITIQOM,131053
South Ribble Council,http://statistics.data.gov.uk/doc/local-authority/30UN,Revenues Plus,Stationery,4130,Stationary for Mail Services - June to Sept 2019,05/07/2019,0000448145,"1,019.91",Revenue,CRITIQOM,131053
South Ribble Council,http://statistics.data.gov.uk/doc/local-authority/30UN,Revenues Plus,Postage,4291,Postage - June to September 2019,24/07/2019,0000448392,626.97,Revenue,CRITIQOM,131053
South Ribble Council,http://statistics.data.gov.uk/doc/local-authority/30UN,Revenues Plus,Postage,4291,Postage - June to September 2019,31/07/2019,0000448462,359.60,Revenue,CRITIQOM,131053
South Ribble Council,http://statistics.data.gov.uk/doc/local-authority/30UN,Healthy Communities,Other Misc,4851,Provision of Bike Fix services 350,24/07/2019,0000448467,350.00,Revenue,CycleRoots CIC,132872
South Ribble Council,http://statistics.data.gov.uk/doc/local-authority/30UN,HR & Communications,Balance Sheet,0030,FULL BIKE PACKAGE - CYCLESCHEME - NAME REDACTED CERTIFICATE NUMBER:  N66530351802,31/07/2019,0000448581,666.67,Revenue,CYCLESCHEME CO  UK,130237
South Ribble Council,http://statistics.data.gov.uk/doc/local-authority/30UN,Development Enterprise & Comm Mgnt,Other Misc,4851,Provision of wheels for all cycling services for the South Ribble Try Athlon event on 13th July 2019,10/07/2019,0000448148,283.33,Revenue,Cycling Projects,132884
South Ribble Council,http://statistics.data.gov.uk/doc/local-authority/30UN,Legal,Legal,4821,Advice Ref: Employment Matter Period: 29.05.19 to 01.07.2019,17/07/2019,0000448194,"1,923.50",Revenue,DAC BEACHCROFT LLP,131193
South Ribble Council,http://statistics.data.gov.uk/doc/local-authority/30UN,Healthy Communities,Other Misc,4851,"Provision of filming & photography for the Try-Athlon event on Saturday 13th July, Worden Park",26/07/2019,0000448449,250.00,Revenue,Daniel Tew,132901
South Ribble Council,http://statistics.data.gov.uk/doc/local-authority/30UN,Scrutiny,Training Expense-Course Fees,1406,Media Training for Elected Members September 2018 Your quotation 1,03/07/2019,0000447993,"2,025.00",Revenue,Data TV Ltd,132609
South Ribble Council,http://statistics.data.gov.uk/doc/local-authority/30UN,Area 3 - Parks/Leyland East West,Grounds Maint Cntrctrs Chgs,4657,Urgent Repairs 133lm of perimeter repairs with 300mm cutback in black EPDM Higher Walton Playing Field.,10/07/2019,0000447666,"4,894.00",Revenue,DCM Projects Ltd,132610
South Ribble Council,http://statistics.data.gov.uk/doc/local-authority/30UN,Area 2 - Waste Transport/Eastern & Central Teams,Materials General,4040,VO65KPZ BIN LIFT REPAIR JFC 12599,10/07/2019,0000448059,294.67,Revenue,DENNIS EAGLE LTD,00019774
South Ribble Council,http://statistics.data.gov.uk/doc/local-authority/30UN,Area 2 - Waste Transport/Eastern & Central Teams,Materials General,4040,VO65KRF 30% HOPPER NOT RAISING JFC 12174,10/07/2019,0000448060,294.67,Revenue,DENNIS EAGLE LTD,00019774
South Ribble Council,http://statistics.data.gov.uk/doc/local-authority/30UN,Area 2 - Waste Transport/Eastern & Central Teams,Materials General,4040,2 X STEERING RAM BALL JOINTS VU11HSZ JFC 12802,10/07/2019,0000448153,271.02,Revenue,DENNIS EAGLE LTD,00019774
South Ribble Council,http://statistics.data.gov.uk/doc/local-authority/30UN,Area 2 - Waste Transport/Eastern & Central Teams,Materials General,4040,BRAKE CONTROL VALVE VU11HSZ JFC 12802,10/07/2019,0000448153,112.93,Revenue,DENNIS EAGLE LTD,00019774
South Ribble Council,http://statistics.data.gov.uk/doc/local-authority/30UN,Neighbourhood Admin & Support,Operational Furniture & Equip,4010,WOODEN FILE HANDLE - OM534370,03/07/2019,0000447941,6.55,Revenue,DICK LEIGH,00026534
South Ribble Council,http://statistics.data.gov.uk/doc/local-authority/30UN,Neighbourhood Admin & Support,Operational Furniture & Equip,4010,CHAINSAW CHAIN 12`` - ST36160030044,03/07/2019,0000447941,14.00,Revenue,DICK LEIGH,00026534
South Ribble Council,http://statistics.data.gov.uk/doc/local-authority/30UN,Neighbourhood Admin & Support,Operational Furniture & Equip,4010,CHAINSAW CHAIN 14``chain - ST36160030050,03/07/2019,0000447941,16.00,Revenue,DICK LEIGH,00026534
South Ribble Council,http://statistics.data.gov.uk/doc/local-authority/30UN,Neighbourhood Admin & Support,Operational Furniture & Equip,4010,CHAINSAW CHAIN FOR 026 SAW 325/62E - ST36390030062,03/07/2019,0000447941,40.34,Revenue,DICK LEIGH,00026534
South Ribble Council,http://statistics.data.gov.uk/doc/local-authority/30UN,Neighbourhood Admin & Support,Operational Furniture & Equip,4010,CHAINSAW CHAIN 16`` - ST36390030067,03/07/2019,0000447941,21.83,Revenue,DICK LEIGH,00026534
South Ribble Council,http://statistics.data.gov.uk/doc/local-authority/30UN,Neighbourhood Admin & Support,Operational Furniture & Equip,4010,CHAINSAW CHAIN 30TH BAR - ST36210030072,03/07/2019,0000447941,104.00,Revenue,DICK LEIGH,00026534
South Ribble Council,http://statistics.data.gov.uk/doc/local-authority/30UN,Neighbourhood Admin & Support,Materials General,4040,BUSBY CHAINSAW BAR - ST30050003905,03/07/2019,0000447941,26.21,Revenue,DICK LEIGH,00026534
South Ribble Council,http://statistics.data.gov.uk/doc/local-authority/30UN,Neighbourhood Admin & Support,Operational Furniture & Equip,4010,CHAINSAW FILES  6� FLAT (Box 12),03/07/2019,0000447941,21.57,Revenue,DICK LEIGH,00026534
South Ribble Council,http://statistics.data.gov.uk/doc/local-authority/30UN,Area 3 - Parks/Leyland East West,Clothing- Uniforms & Laundry,4410,1x Arbotec trousers type C (GC),26/07/2019,0000448245,205.70,Revenue,DICK LEIGH,00026534
South Ribble Council,http://statistics.data.gov.uk/doc/local-authority/30UN,Area 3 - Parks/Leyland East West,Operational Furniture & Equip,4010,4x blood kits,26/07/2019,0000448245,67.12,Revenue,DICK LEIGH,00026534
South Ribble Council,http://statistics.data.gov.uk/doc/local-authority/30UN,Area 3 - Parks/Leyland East West,Operational Furniture & Equip,4010,4x combi spanners,26/07/2019,0000448245,15.00,Revenue,DICK LEIGH,00026534
South Ribble Council,http://statistics.data.gov.uk/doc/local-authority/30UN,Area 3 - Parks/Leyland East West,Operational Furniture & Equip,4010,1x 70l rope bag,26/07/2019,0000448245,54.00,Revenue,DICK LEIGH,00026534
South Ribble Council,http://statistics.data.gov.uk/doc/local-authority/30UN,Development Enterprise & Comm Mgnt,Other Misc,4851,To supply various feather flags and banners to the Try Athlon event on 13th July 2019,24/07/2019,0000448396,501.49,Revenue,Display Wizard Ltd,132862
South Ribble Council,http://statistics.data.gov.uk/doc/local-authority/30UN,HR & Communications,Subs to Statutory Bodies,4720,ANNUAL MEMBERSHIP SUBSCRIPTION RENEWAL FOR 2019 - 2020,19/07/2019,0000448382,828.00,Revenue,District Councils` Network,132234
South Ribble Council,http://statistics.data.gov.uk/doc/local-authority/30UN,Information Services,Peripherals,4248,"FME for Oracle Fixed Maintenance 860.00 and Standard Support for FME 550.00, to 30/09/20",31/07/2019,0000448323,"1,410.00",Revenue,Dotted Eyes Ltd,131106
South Ribble Council,http://statistics.data.gov.uk/doc/local-authority/30UN,Housing,Cap Grant- Improve Grants,C570,"WORKS ADDRESS REDACTED, CONTRIBUTION FROM CLIENT 7240.00, COST OF GRANT FOR BUILDING WORK 21080.00",24/07/2019,0000448468,"5,000.00",Revenue,DS Building Services,132742
South Ribble Council,http://statistics.data.gov.uk/doc/local-authority/30UN,Chief Executive`s Management,Advertising,4842,LINK ROLLER BANNER-5 PANELS WIDTH 4250mm HEIGHT 2175mm SUPPLIED WITH BAG. `EASILINK` KIT (2000mm & 2175mm),24/07/2019,0000447663,938.50,Revenue,Eazyprint,132825
South Ribble Council,http://statistics.data.gov.uk/doc/local-authority/30UN,Information Services,Peripherals,4260,01-Jul-19,19/07/2019,0000448268,"2,660.94",Revenue,EE Ltd,131653
South Ribble Council,http://statistics.data.gov.uk/doc/local-authority/30UN,Area 2 - Waste Transport/Eastern & Central Teams,Printing,4127,Green Waste Permit Printing and Distribution 2019/20,03/07/2019,0000447960,"2,143.96",Revenue,Euro Print Labels,132447
South Ribble Council,http://statistics.data.gov.uk/doc/local-authority/30UN,Area 2 - Waste Transport/Eastern & Central Teams,Printing,4127,Green Waste Permit Printing and Distribution 2019/20,24/07/2019,0000448380,939.12,Revenue,Euro Print Labels,132447
South Ribble Council,http://statistics.data.gov.uk/doc/local-authority/30UN,Healthy Communities,Advertising,4842,1 days filming and edit - 750 1 Morning filming at St Leonard�s - 50 Total Price - 800,17/07/2019,0000448222,800.00,Revenue,Everyonemedia Ltd,131539
South Ribble Council,http://statistics.data.gov.uk/doc/local-authority/30UN,Area 2 - Waste Transport/Eastern & Central Teams,Materials General,4040,HYDRAULIC TANK PO16HMZ JFC 12824,26/07/2019,0000448487,423.67,Revenue,F R SHARROCK LTD,00034539
South Ribble Council,http://statistics.data.gov.uk/doc/local-authority/30UN,Area 2 - Waste Transport/Eastern & Central Teams,External Contractors Charges,4570,Full suites of bins to new properties 2018-19,03/07/2019,0000447840,"26,993.21",Revenue,FCC Environment Services (UK) Ltd,131612
South Ribble Council,http://statistics.data.gov.uk/doc/local-authority/30UN,Area 2 - Waste Transport/Eastern & Central Teams,External Contractors Charges,4570,Residual Waste Collections June 2019,26/07/2019,0000448301,"41,921.09",Revenue,FCC Environment Services (UK) Ltd,131612
South Ribble Council,http://statistics.data.gov.uk/doc/local-authority/30UN,Area 2 - Waste Transport/Eastern & Central Teams,External Contractors Charges,4570,Dry Recyclable Non Terraced June 2019,26/07/2019,0000448301,"42,931.46",Revenue,FCC Environment Services (UK) Ltd,131612
South Ribble Council,http://statistics.data.gov.uk/doc/local-authority/30UN,Area 2 - Waste Transport/Eastern & Central Teams,External Contractors Charges,4570,Dry Recyclable Terraced June 2019,26/07/2019,0000448301,"2,039.38",Revenue,FCC Environment Services (UK) Ltd,131612
South Ribble Council,http://statistics.data.gov.uk/doc/local-authority/30UN,Area 2 - Waste Transport/Eastern & Central Teams,External Contractors Charges,4570,Organic Waste Collections (Non Terraced) June 2019,26/07/2019,0000448301,"29,752.99",Revenue,FCC Environment Services (UK) Ltd,131612
South Ribble Council,http://statistics.data.gov.uk/doc/local-authority/30UN,Area 2 - Waste Transport/Eastern & Central Teams,External Contractors Charges,4570,Schedule 2 Properties June 2019,26/07/2019,0000448301,"1,702.69",Revenue,FCC Environment Services (UK) Ltd,131612
South Ribble Council,http://statistics.data.gov.uk/doc/local-authority/30UN,Area 2 - Waste Transport/Eastern & Central Teams,External Contractors Charges,4570,Commercial Waste Collections June 2019,26/07/2019,0000448301,"6,672.24",Revenue,FCC Environment Services (UK) Ltd,131612
South Ribble Council,http://statistics.data.gov.uk/doc/local-authority/30UN,Area 2 - Waste Transport/Eastern & Central Teams,External Contractors Charges,4570,Bulky Waste Collections June 2019,26/07/2019,0000448301,922.22,Revenue,FCC Environment Services (UK) Ltd,131612
South Ribble Council,http://statistics.data.gov.uk/doc/local-authority/30UN,Area 2 - Waste Transport/Eastern & Central Teams,External Contractors Charges,4570,WEEE Collections June 2019,26/07/2019,0000448301,344.75,Revenue,FCC Environment Services (UK) Ltd,131612
South Ribble Council,http://statistics.data.gov.uk/doc/local-authority/30UN,Area 2 - Waste Transport/Eastern & Central Teams,External Contractors Charges,4570,Clinical Waste Collections June 2019,26/07/2019,0000448301,587.10,Revenue,FCC Environment Services (UK) Ltd,131612
South Ribble Council,http://statistics.data.gov.uk/doc/local-authority/30UN,Area 2 - Waste Transport/Eastern & Central Teams,External Contractors Charges,4570,Replacement Bins June 2019,26/07/2019,0000448301,"5,000.00",Revenue,FCC Environment Services (UK) Ltd,131612
South Ribble Council,http://statistics.data.gov.uk/doc/local-authority/30UN,Area 2 - Waste Transport/Eastern & Central Teams,External Contractors Charges,4570,Additional Properties June 2019,26/07/2019,0000448301,"2,719.72",Revenue,FCC Environment Services (UK) Ltd,131612
South Ribble Council,http://statistics.data.gov.uk/doc/local-authority/30UN,Area 2 - Waste Transport/Eastern & Central Teams,Balance Sheet,0030,retention refuse,26/07/2019,0000448301,"-2,743.49",Revenue,FCC Environment Services (UK) Ltd,131612
South Ribble Council,http://statistics.data.gov.uk/doc/local-authority/30UN,Area 2 - Waste Transport/Eastern & Central Teams,Balance Sheet,0030,retention recyclimg,26/07/2019,0000448301,"-3,736.19",Revenue,FCC Environment Services (UK) Ltd,131612
South Ribble Council,http://statistics.data.gov.uk/doc/local-authority/30UN,Area 2 - Waste Transport/Eastern & Central Teams,External Contractors Charges,4570,Additional Bulky Waste Collections June 2019,24/07/2019,0000448302,491.91,Revenue,FCC Environment Services (UK) Ltd,131612
South Ribble Council,http://statistics.data.gov.uk/doc/local-authority/30UN,Area 2 - Waste Transport/Eastern & Central Teams,External Contractors Charges,4570,Additional WEEE Collections June 2019,24/07/2019,0000448302,290.52,Revenue,FCC Environment Services (UK) Ltd,131612
South Ribble Council,http://statistics.data.gov.uk/doc/local-authority/30UN,Area 2 - Waste Transport/Eastern & Central Teams,Balance Sheet,0030,retention,24/07/2019,0000448302,-43.03,Revenue,FCC Environment Services (UK) Ltd,131612
South Ribble Council,http://statistics.data.gov.uk/doc/local-authority/30UN,Neighbourhood Admin & Support,Materials General,4040,FOOTBALL PITCH LINE MARKER PAINT 10LT - PITCHMARKER Q2,31/07/2019,0000448534,406.00,Revenue,Fleet Line Markers Limited,131942
South Ribble Council,http://statistics.data.gov.uk/doc/local-authority/30UN,Property Services,Operational Furniture & Equip,4010,"Please supply 6 x 180w x 150h  product code 32992BE in Blue to Leyland Market, Northcote Street, Leyland PR25 2AA.",26/07/2019,0000448099,810.00,Revenue,Furniture@work,132879
South Ribble Council,http://statistics.data.gov.uk/doc/local-authority/30UN,Environmental Health,Agency Fees,1121,NAME REDACTED for 3 months per NAME REDACTED/NAME REDACTED.,12/07/2019,0000447692,"1,280.00",Revenue,G2 Recruitment Solutions,132684
South Ribble Council,http://statistics.data.gov.uk/doc/local-authority/30UN,Environmental Health,Agency Fees,1121,NAME REDACTED for 3 months per NAME REDACTED/NAME REDACTED.,12/07/2019,0000448002,768.00,Revenue,G2 Recruitment Solutions,132684
South Ribble Council,http://statistics.data.gov.uk/doc/local-authority/30UN,Environmental Health,Agency Fees,1121,NAME REDACTED for 3 months per NAME REDACTED/NAME REDACTED.,26/07/2019,0000448154,768.00,Revenue,G2 Recruitment Solutions,132684
South Ribble Council,http://statistics.data.gov.uk/doc/local-authority/30UN,Environmental Health,Agency Fees,1121,NAME REDACTED for 3 months per NAME REDACTED/NAME REDACTED.,17/07/2019,0000448263,768.00,Revenue,G2 Recruitment Solutions,132684
South Ribble Council,http://statistics.data.gov.uk/doc/local-authority/30UN,Regeneration,Other Misc,4851,2x gator hire for Leyland Festival,03/07/2019,0000447812,691.00,Revenue,GATOR HIRE UK LTD,131217
South Ribble Council,http://statistics.data.gov.uk/doc/local-authority/30UN,Neighbourhood Admin & Support,Grounds Maint Cntrctrs Chgs,4657,4 x SRBC FLAGS AS PER QUOTE REF: 68001,03/07/2019,0000447899,249.80,Revenue,GLASSFIBRE FLAGPOLES LTD,00087162
South Ribble Council,http://statistics.data.gov.uk/doc/local-authority/30UN,Neighbourhood Admin & Support,Grounds Maint Cntrctrs Chgs,4657,DELIVER TO ADDRESS REDACTED,03/07/2019,0000447899,9.95,Revenue,GLASSFIBRE FLAGPOLES LTD,00087162
South Ribble Council,http://statistics.data.gov.uk/doc/local-authority/30UN,Development Enterprise & Comm Mgnt,Rep & Maint Premises,2020,NAME REDACTED fully grn`d in error,10/07/2019,0000448174,250.00,Revenue,GLASSFIBRE FLAGPOLES LTD,00087162
South Ribble Council,http://statistics.data.gov.uk/doc/local-authority/30UN,Democratic Services,Other Expenses,463A,Buffet for 40 @ Kingsfold Methodist Church Hall (as per NAME REDACTED) Sunday 23rd June 2019 @ 11am ,19/07/2019,0000447994,270.40,Revenue,GLOVERS BAKERY LTD,00102416
South Ribble Council,http://statistics.data.gov.uk/doc/local-authority/30UN,Area 3 - Parks/Leyland East West,Grounds Maint Cntrctrs Chgs,4657,Please supply 3x talking bob heads including delivery 1x green/yellow 1x yellow/green 1x blue/yellow,03/07/2019,0000447789,"3,072.50",Revenue,HAGS SMP LTD,130596
South Ribble Council,http://statistics.data.gov.uk/doc/local-authority/30UN,Area 3 - Parks/Leyland East West,Grounds Maint Cntrctrs Chgs,4657,Please supply 3x talking bob heads including delivery 1x green/yellow 1x yellow/green 1x blue/yellow,03/07/2019,0000447789,"3,072.50",Revenue,HAGS SMP LTD,130596
South Ribble Council,http://statistics.data.gov.uk/doc/local-authority/30UN,Area 3 - Parks/Leyland East West,Grounds Maint Cntrctrs Chgs,4657,Please supply 3x talking bob heads including delivery 1x green/yellow 1x yellow/green 1x blue/yellow,03/07/2019,0000447789,"2,218.11",Revenue,HAGS SMP LTD,130596
South Ribble Council,http://statistics.data.gov.uk/doc/local-authority/30UN,Area 3 - Parks/Leyland East West,Grounds Maint Cntrctrs Chgs,4657,CARRIAGE,03/07/2019,0000447789,200.00,Revenue,HAGS SMP LTD,130596
South Ribble Council,http://statistics.data.gov.uk/doc/local-authority/30UN,Property Services,Vehicle Running Costs,3132,"15,000ltrs diesel @ 100.32 ppl delivered to unit 81 Bison Place Moss Side Leyland PR26 7QR YPO contract 618",10/07/2019,0000448097,"14,278.69",Revenue,Hall Fuels trading name of WFL (UK) Ltd,00116758
South Ribble Council,http://statistics.data.gov.uk/doc/local-authority/30UN,Neighbourhood Admin & Support,Vehicle Running Costs,3132,15000LT X DIESEL (TANK 1) @ 102.45 PPL,17/07/2019,0000448275,"15,389.01",Revenue,Hall Fuels trading name of WFL (UK) Ltd,00116758
South Ribble Council,http://statistics.data.gov.uk/doc/local-authority/30UN,Neighbourhood Admin & Support,Vehicle Running Costs,3134,2500LT x GAS OIL (TANK 2) @ 56.74 PPL,24/07/2019,0000448282,"1,435.25",Revenue,Hall Fuels trading name of WFL (UK) Ltd,00116758
South Ribble Council,http://statistics.data.gov.uk/doc/local-authority/30UN,Neighbourhood Admin & Support,Vehicle Running Costs,3132,15000LT X DIESEL (TANK 1) @ 102.12 PPL,24/07/2019,0000448478,"15,477.00",Revenue,Hall Fuels trading name of WFL (UK) Ltd,00116758
South Ribble Council,http://statistics.data.gov.uk/doc/local-authority/30UN,Development Enterprise & Comm Mgnt,Sports Dev Expenses,4894,South Ribble Sports Awards Deposit for event on the 29th June 2019,10/07/2019,0000448192,"3,338.25",Revenue,Hallmark Hotel Preston Leyland,00090117
South Ribble Council,http://statistics.data.gov.uk/doc/local-authority/30UN,Neighbourhood Admin & Support,Grounds Maint Cntrctrs Chgs,4657,SUPPLY AND INSTALLATION OF HEATING SYSTEM (Glass House section only),31/07/2019,0000448469,"10,925.75",Revenue,HARRIER GARDEN DEVELOPMENTS LTD,132858
South Ribble Council,http://statistics.data.gov.uk/doc/local-authority/30UN,Shared Assurance Services,Agency Fees,1121,NAME REDACTED-Temporary Head of Shared Assurance Services ,12/07/2019,0000447985,"2,458.39",Revenue,Hays Specialist Recruitment Ltd,132288
South Ribble Council,http://statistics.data.gov.uk/doc/local-authority/30UN,Environmental Health,Operational Furniture & Equip,4016,1 X Deluxe Manual Handling Demonstration Kit  (DELUXE-MAN-HAN),24/07/2019,0000448015,390.00,Revenue,Health Books UK Ltd t/a Anatomystuff,132880
South Ribble Council,http://statistics.data.gov.uk/doc/local-authority/30UN,Environmental Health,Licence Fees,488B,fee 2nd QTR,26/07/2019,0000448387,"1,000.00",Revenue,HIGHER WALTON COMMUNITY CENTRE,00070535
South Ribble Council,http://statistics.data.gov.uk/doc/local-authority/30UN,Shared Financial Services,Balance Sheet,0140,,10/07/2019,0000447672,314.74,Revenue,HM REVENUE & CUSTOMS,00024837
South Ribble Council,http://statistics.data.gov.uk/doc/local-authority/30UN,Regeneration,Capital Expenditure,C230,Green Oak planed timber posts with 4 day weathered 100x100x1500,19/07/2019,0000448320,"1,100.00",Revenue,HOGHTON TIMBER CO LTD,130944
South Ribble Council,http://statistics.data.gov.uk/doc/local-authority/30UN,Property Services,Rep & Maint Premises,2024,"Please supply floor covering for Mercer Road, Changing Rooms  as per ref SPH/5199 dated 20th May 2019",17/07/2019,0000448244,955.00,Revenue,HYDE FLOORING CO LTD,00023605
South Ribble Council,http://statistics.data.gov.uk/doc/local-authority/30UN,Property Services,Rep & Maint Premises,2024,1 day hire of generator,17/07/2019,0000448244,170.00,Revenue,HYDE FLOORING CO LTD,00023605
South Ribble Council,http://statistics.data.gov.uk/doc/local-authority/30UN,Housing,Advertising,4842,"Assignment   �  Photos of Developers Conference, 13 June 2019, Four hours (12:00  16:00), cost of 250",24/07/2019,0000447737,250.00,Revenue,IAN ROBINSON,132041
South Ribble Council,http://statistics.data.gov.uk/doc/local-authority/30UN,HR & Communications,Advertising,4848,TO TAKE PHOTOS AT LEYLAND FESTIVAL ON SATURDAY 15 JUNE 2019 - 11:00 - 15:00,24/07/2019,0000447754,250.00,Revenue,IAN ROBINSON,132041
South Ribble Council,http://statistics.data.gov.uk/doc/local-authority/30UN,Development Enterprise & Comm Mgnt,Other Misc,4851,"Leyland Festival 14th June 7pm-7am 4 x security, 15th June 11.00am- 6pm 15 SIA Door Staff, 1 SIA Supervisor",17/07/2019,0000448338,"2,163.50",Revenue,Icon Projects Solutions,132890
South Ribble Council,http://statistics.data.gov.uk/doc/local-authority/30UN,Information Services,Peripherals,4248,Commercial Premises App Annual Maintenance for period 31/08/19-30/08/20,31/07/2019,0000448288,643.35,Revenue,IDOX PLC,00104485
South Ribble Council,http://statistics.data.gov.uk/doc/local-authority/30UN,Information Services,Consultancy Fees,4541,Technical Services Package - Data Migration and Weekend Working,31/07/2019,0000448309,"2,375.00",Revenue,IDOX PLC,00104485
South Ribble Council,http://statistics.data.gov.uk/doc/local-authority/30UN,Property Services,Operational Furniture & Equip,4012,Contract C/90229411 for 1 x 85 x 300 floor mat in pebble at Moss Side depot from 20th July 2019 to 31st March 2020,26/07/2019,0000448427,622.22,Revenue,INITIAL WASHROOM HYGIENE,00024811
South Ribble Council,http://statistics.data.gov.uk/doc/local-authority/30UN,Information Services,Peripherals,4248,"0.5 days of cloud migration - to be done remotely, as per quote",03/07/2019,0000447658,495.00,Revenue,InPhase Limited,132452
South Ribble Council,http://statistics.data.gov.uk/doc/local-authority/30UN,Neighbourhood Admin & Support,Materials General,4040,QC10 - QUICK SET CONCRETE,17/07/2019,0000448283,"1,228.64",Revenue,INSTARMAC GROUP PLC,00024905
South Ribble Council,http://statistics.data.gov.uk/doc/local-authority/30UN,Environmental Health,Other Misc,4869,2 X PLACES FOR NAME REDACTED AND NAME REDACTED ON THE TAXI CONFERENCE ON 9 JULY 2019 @ 130 PER PERSON,17/07/2019,0000448314,260.00,Revenue,INSTITUTE OF LICENSING EVENTS LTD,00118125
South Ribble Council,http://statistics.data.gov.uk/doc/local-authority/30UN,Area 1 - Penwortham Western Parishes,Contract Hire & Lease Costs,3212,HIRE OF 3.5T TIPPER DX14JXM 18/04/2019 - 11/05/2019,24/07/2019,0000448423,888.33,Revenue,Intack Self Drive Ltd,132314
South Ribble Council,http://statistics.data.gov.uk/doc/local-authority/30UN,Property Services,Professional Fees,4510,To transport Sports Development team to various Primary Schools in South Ribble 10th  14th June 2019 ,03/07/2019,0000447936,750.00,Revenue,ISMAIL EBRAHIM ESAT,130499
South Ribble Council,http://statistics.data.gov.uk/doc/local-authority/30UN,Area 3 - Parks/Leyland East West,Grounds Maint Cntrctrs Chgs,4657,Professional fees for RIBA stages 3 and 4 for Hurst Grange Park Coach House,31/07/2019,0000448328,"5,917.50",Revenue,IWA ARCHITECTS LTD,00120087
South Ribble Council,http://statistics.data.gov.uk/doc/local-authority/30UN,Property Services,Rep & Maint Premises,2020,"Please supply good and services as per quote Q12 2496 dated 16/5/2019 as per NAME REDACTED 1,958.00 excl vat",17/07/2019,0000448183,"1,958.00",Revenue,JBC CONTROL SYSTEM,130816
South Ribble Council,http://statistics.data.gov.uk/doc/local-authority/30UN,Neighbourhood Admin & Support,Materials General,4040,"TREATED SAWN SOFTWOODS 44x.9x.1x.1, 20x3.6x.1x.1, 11x1.8x.1x.1, 5x3.6x.075x.075, 2x3.6x.2x.05 Deliver to Worden Park",10/07/2019,0000448179,523.11,Revenue,JOHN HY MAYOR & SONS LTD,00028176
South Ribble Council,http://statistics.data.gov.uk/doc/local-authority/30UN,Neighbourhood Admin & Support,Grounds Maint Cntrctrs Chgs,4657,"RENDERING WALLS, WORDEN PARK CONSERVATORY AS PER QUOTE DATED 23./4/19",24/07/2019,0000447982,"5,989.00",Revenue,John Wade Groundworks Ltd t/a Wade Group,131568
South Ribble Council,http://statistics.data.gov.uk/doc/local-authority/30UN,Development Enterprise & Comm Mgnt,Advertising,4841,Press notices for planning applications 2019/20,12/07/2019,0000447733,810.00,Revenue,JPI Media - JOHNSTON PUBLISHING (NORTH WEST),00011345
South Ribble Council,http://statistics.data.gov.uk/doc/local-authority/30UN,Development Enterprise & Comm Mgnt,Advertising,4841,Press notices for planning applications 2019/20,24/07/2019,0000448070,810.00,Revenue,JPI Media - JOHNSTON PUBLISHING (NORTH WEST),00011345
South Ribble Council,http://statistics.data.gov.uk/doc/local-authority/30UN,Healthy Communities,Professional Fees,4510,,10/07/2019,0000448189,250.00,Revenue,Jump UK Sports Ltd,131960
South Ribble Council,http://statistics.data.gov.uk/doc/local-authority/30UN,Homelessness,Contributions,4730,SRBC TENANCY SUPPORT 1 Q1 2019/20 JUNE TO AUGUST 2019,05/07/2019,0000447772,"4,875.00",Revenue,KEY UNLOCKING FUTURES LTD,00098601
South Ribble Council,http://statistics.data.gov.uk/doc/local-authority/30UN,Homelessness,Contributions,4730,"HOUSING ADVICE & MEDIATION 1 4,875.00 0.00 4,875.00 Q2 JULY TO SEPT 2019/20",17/07/2019,0000448191,"4,875.00",Revenue,KEY UNLOCKING FUTURES LTD,00098601
South Ribble Council,http://statistics.data.gov.uk/doc/local-authority/30UN,Housing,Cap Grant- Improve Grants,C570,"DFG WORKS AT ADDRESS REDACTED AS PER COST OF WORK-SRBC SPEC FROM OT REFERRAL, CUSTOMER COST 19290.00",10/07/2019,0000448221,"19,290.00",Revenue,Kneen Developments,131997
South Ribble Council,http://statistics.data.gov.uk/doc/local-authority/30UN,Property Services,Professional Fees,4510,Investment Property Strategy 2018/19,03/07/2019,0000447972,"3,200.00",Revenue,Lambert Smith Hampton Investment Management Ltd,132594
South Ribble Council,http://statistics.data.gov.uk/doc/local-authority/30UN,Property Services,Professional Fees,4510,Investment Property Strategy 2018/19,03/07/2019,0000448091,"3,200.00",Revenue,Lambert Smith Hampton Investment Management Ltd,132594
South Ribble Council,http://statistics.data.gov.uk/doc/local-authority/30UN,Area 2 - Waste Transport/Eastern & Central Teams,Materials General,4040,CASSETTE BEARING VU60HLE JFC 12796,12/07/2019,0000448231,398.00,Revenue,lancashire Bus and Truck Parts Limited,132511
South Ribble Council,http://statistics.data.gov.uk/doc/local-authority/30UN,Shared Financial Services,Salaries Superannuation,1161,2019/20,08/07/2019,0000446496,"939,100.00",Revenue,LANCASHIRE COUNTY COUNCIL PENSION FUND,130639
South Ribble Council,http://statistics.data.gov.uk/doc/local-authority/30UN,Shared Financial Services,Salaries Superannuation,1161,LUMP,08/07/2019,0000446496,"588,400.00",Revenue,LANCASHIRE COUNTY COUNCIL PENSION FUND,130639
South Ribble Council,http://statistics.data.gov.uk/doc/local-authority/30UN,HR & Communications,Advertising,4848,Media Training for South Ribble Borough Council Councillors Friday 21st June 2019,24/07/2019,0000448094,215.00,Revenue,LANCASHIRE FOOTBALL ASSOCIATION LTD,00028066
South Ribble Council,http://statistics.data.gov.uk/doc/local-authority/30UN,HR & Communications,Advertising,4848,"drinks , food, equipment",24/07/2019,0000448094,188.00,Revenue,LANCASHIRE FOOTBALL ASSOCIATION LTD,00028066
South Ribble Council,http://statistics.data.gov.uk/doc/local-authority/30UN,Housing,Cap Grant- Improve Grants,C570,TO SUPPLY AND INSTALL THROUGH FLOOR LIFT AT ADDRESS REDACTED AS PER QUOTE PROVIDED OF 9139.00,10/07/2019,0000448155,"9,139.00",Revenue,LANCS COUNTY COUNCIL,00041645
South Ribble Council,http://statistics.data.gov.uk/doc/local-authority/30UN,Housing,Cap Grant- Improve Grants,C570,DFG WORKS TO SUPPLY AND INSTALL STAIRLIFT AT ADDRESS REDACTED AS PER QUOTE SUPPLIED OF 5879.00,10/07/2019,0000448177,"5,879.00",Revenue,LANCS COUNTY COUNCIL,00041645
South Ribble Council,http://statistics.data.gov.uk/doc/local-authority/30UN,Housing,Cap Grant- Improve Grants,C570,SUPPLY AND INSTALL ROOM PADDING AT ADDRESS REDACTED. 50% of total cost of 6075.00 to be covered by new progress,05/07/2019,0000448188,"3,037.50",Revenue,LANCS COUNTY COUNCIL,00041645
South Ribble Council,http://statistics.data.gov.uk/doc/local-authority/30UN,Housing,Cap Grant- Improve Grants,C570,DFG WORKS TO SUPPLY  BIOBIDET AT ADDRESS REDACTED AS PER QUOTE SUPPLIED COST 530.00,19/07/2019,0000448369,530.00,Revenue,LANCS COUNTY COUNCIL,00041645
South Ribble Council,http://statistics.data.gov.uk/doc/local-authority/30UN,Shared Financial Services,Balance Sheet,0030,Enterprise Zone Business Rates Income payment to the LEP 2018/2019  (period 1.12.16 to 31.3.19),31/07/2019,0000448602,"418,170.79",Revenue,LANCS COUNTY COUNCIL,00041645
South Ribble Council,http://statistics.data.gov.uk/doc/local-authority/30UN,Legal,Other Local Authorities,4530,LAND CHARGES - JUNE 2019,31/07/2019,0000448626,991.00,Revenue,LANCS COUNTY COUNCIL,00041645
South Ribble Council,http://statistics.data.gov.uk/doc/local-authority/30UN,Legal,Other Local Authorities,4530,LAND CHARGES - MAY 2019,31/07/2019,0000448637,850.50,Revenue,LANCS COUNTY COUNCIL,00041645
South Ribble Council,http://statistics.data.gov.uk/doc/local-authority/30UN,Planning,Professional Fees,4510,"Coopervision, Unit 1 School Lane, Chandlers Ford Professional Services Fee GIA survey agreed with NAME REDACTED-Lambert Smith Hampton",31/07/2019,0000448625,"1,350.00",Revenue,Lane & Frankham Limited,132739
South Ribble Council,http://statistics.data.gov.uk/doc/local-authority/30UN,Area 3 - Parks/Leyland East West,Grounds Maint Cntrctrs Chgs,4657,80 No Bronte Heritage Collection - Multi Purpose Compost,12/07/2019,0000447974,278.92,Revenue,LBS WORLDWIDE LTD,00026327
South Ribble Council,http://statistics.data.gov.uk/doc/local-authority/30UN,Regeneration,Capital Expenditure,C230,Green Links Logos x 166+C clips x 200,12/07/2019,0000448250,"1,667.00",Revenue,LCC SIGN SHOP,00027096
South Ribble Council,http://statistics.data.gov.uk/doc/local-authority/30UN,Democratic Services,Training Expense-Course Fees,1410,CLLRS NAMES REDACTED TO ATTEND THE LGA19  ANNUAL CONFERENCE AND EXHIBITION ON 2-4 JULY 2019 AT BOURNEMOUTH,31/07/2019,0000448078,"1,090.00",Revenue,LGA (LOCAL GOVERNMENT ASSOCIATION),00042851
South Ribble Council,http://statistics.data.gov.uk/doc/local-authority/30UN,HR & Communications,Other Misc,4851,134 X DRIVER MANAGEMENT FEE @ 4.80 = 643.20 64 X DVLA ELECTRONIC FEE @ 0.60 = 38.40,24/07/2019,0000448421,681.60,Revenue,LICENCE BUREAU LIMITED,131943
South Ribble Council,http://statistics.data.gov.uk/doc/local-authority/30UN,Development Enterprise & Comm Mgnt,Other Misc,4851,Provision of arts & crafts services at the Try Athlon event on 13th July 2019,19/07/2019,0000448335,400.00,Revenue,Magical Story Jars,132656
South Ribble Council,http://statistics.data.gov.uk/doc/local-authority/30UN,Housing,Cap Grant- Improve Grants,C570,"DFG WORKS FOR LEVEL ACCESS BATHROOM AT ADDRESS REDACTED. New progress property, 50%  of quote paid via grant is 2530.00",05/07/2019,0000448170,"2,530.00",Revenue,MAHONEY CONTRACTORS LTD,131271
South Ribble Council,http://statistics.data.gov.uk/doc/local-authority/30UN,Housing,Cap Grant- Improve Grants,C570,DFG WORKS FOR LEVEL ACCESS BATHROOM AT ADDRESSS REDACTED. New progress property so 50%  paid via grant is 2380.00,05/07/2019,0000448175,"2,245.75",Revenue,MAHONEY CONTRACTORS LTD,131271
South Ribble Council,http://statistics.data.gov.uk/doc/local-authority/30UN,Housing,Cap Grant- Improve Grants,C570,DFG WORKS FOR LEVEL ACCESS BATHROOM AT ADDRESS REDACTED. New progress property so 50%  paid via grant is 2735.00,17/07/2019,0000448331,"2,735.00",Revenue,MAHONEY CONTRACTORS LTD,131271
South Ribble Council,http://statistics.data.gov.uk/doc/local-authority/30UN,Neighbourhood Admin & Support,Materials General,4040,BELLIS WAY   T,24/07/2019,0000448308,84.00,Revenue,Main Street Signs Ltd,131922
South Ribble Council,http://statistics.data.gov.uk/doc/local-authority/30UN,Neighbourhood Admin & Support,Materials General,4040,HIGH MEADOW,24/07/2019,0000448308,40.00,Revenue,Main Street Signs Ltd,131922
South Ribble Council,http://statistics.data.gov.uk/doc/local-authority/30UN,Neighbourhood Admin & Support,Materials General,4040,NORFOLK ROAD,24/07/2019,0000448308,164.00,Revenue,Main Street Signs Ltd,131922
South Ribble Council,http://statistics.data.gov.uk/doc/local-authority/30UN,Neighbourhood Admin & Support,Materials General,4040,ALLERTON ROAD,24/07/2019,0000448308,84.00,Revenue,Main Street Signs Ltd,131922
South Ribble Council,http://statistics.data.gov.uk/doc/local-authority/30UN,Neighbourhood Admin & Support,Materials General,4040,WARWICK ROAD,24/07/2019,0000448308,164.00,Revenue,Main Street Signs Ltd,131922
South Ribble Council,http://statistics.data.gov.uk/doc/local-authority/30UN,Neighbourhood Admin & Support,Materials General,4040,HENNEL LANE,24/07/2019,0000448308,120.00,Revenue,Main Street Signs Ltd,131922
South Ribble Council,http://statistics.data.gov.uk/doc/local-authority/30UN,Neighbourhood Admin & Support,Materials General,4040,CHATSWORTH ROAD,24/07/2019,0000448308,176.00,Revenue,Main Street Signs Ltd,131922
South Ribble Council,http://statistics.data.gov.uk/doc/local-authority/30UN,Neighbourhood Admin & Support,Materials General,4040,RUTLAND AVENUE,24/07/2019,0000448308,86.00,Revenue,Main Street Signs Ltd,131922
South Ribble Council,http://statistics.data.gov.uk/doc/local-authority/30UN,Neighbourhood Admin & Support,Materials General,4040,MATTERDALE ROAD - BORROWDALE ROAD,24/07/2019,0000448308,60.00,Revenue,Main Street Signs Ltd,131922
South Ribble Council,http://statistics.data.gov.uk/doc/local-authority/30UN,Neighbourhood Admin & Support,Materials General,4040,WOODBURN GROVE  T,24/07/2019,0000448308,46.00,Revenue,Main Street Signs Ltd,131922
South Ribble Council,http://statistics.data.gov.uk/doc/local-authority/30UN,Neighbourhood Admin & Support,Materials General,4040,TWO ACRE LAND  T,24/07/2019,0000448308,44.00,Revenue,Main Street Signs Ltd,131922
South Ribble Council,http://statistics.data.gov.uk/doc/local-authority/30UN,Neighbourhood Admin & Support,Materials General,4040,BROWNEDGE ROAD,24/07/2019,0000448308,13.00,Revenue,Main Street Signs Ltd,131922
South Ribble Council,http://statistics.data.gov.uk/doc/local-authority/30UN,Neighbourhood Admin & Support,Materials General,4040,BLACKTHORN DRIVE,24/07/2019,0000448308,45.00,Revenue,Main Street Signs Ltd,131922
South Ribble Council,http://statistics.data.gov.uk/doc/local-authority/30UN,Neighbourhood Admin & Support,Materials General,4040,TAMAR CLOSE,24/07/2019,0000448308,40.00,Revenue,Main Street Signs Ltd,131922
South Ribble Council,http://statistics.data.gov.uk/doc/local-authority/30UN,Neighbourhood Admin & Support,Materials General,4040,WINDSOR ROAD,24/07/2019,0000448308,164.00,Revenue,Main Street Signs Ltd,131922
South Ribble Council,http://statistics.data.gov.uk/doc/local-authority/30UN,Neighbourhood Admin & Support,Materials General,4040,CAVENDISH PLACE,24/07/2019,0000448308,44.00,Revenue,Main Street Signs Ltd,131922
South Ribble Council,http://statistics.data.gov.uk/doc/local-authority/30UN,Neighbourhood Admin & Support,Materials General,4040,CINNAMON HILL ROAD NORTH,24/07/2019,0000448308,204.00,Revenue,Main Street Signs Ltd,131922
South Ribble Council,http://statistics.data.gov.uk/doc/local-authority/30UN,Neighbourhood Admin & Support,Materials General,4040,REGENT ROAD,24/07/2019,0000448308,80.00,Revenue,Main Street Signs Ltd,131922
South Ribble Council,http://statistics.data.gov.uk/doc/local-authority/30UN,Neighbourhood Admin & Support,Materials General,4040,DELIVERY CHARGE,24/07/2019,0000448308,104.50,Revenue,Main Street Signs Ltd,131922
South Ribble Council,http://statistics.data.gov.uk/doc/local-authority/30UN,Democratic Services,Other Misc,4421,PLEASE PROVIDE 75 LARGE PRINT BALLOT PAPERS AND 75 BRAILLE PAPERS FOR THE EUROPEAN ELECTION + DELIVERY.,24/07/2019,0000448229,255.00,Revenue,MANCHESTER CITY COUNCIL,132871
South Ribble Council,http://statistics.data.gov.uk/doc/local-authority/30UN,Development Enterprise & Comm Mgnt,Other Misc,4851,"Supply/erect crowd barriers on Worden park, Leyland festival. Deliver/erect 14th June, collect 16th June.",03/07/2019,0000448038,"1,200.00",Revenue,MDS Scaffolding Limited,131533
South Ribble Council,http://statistics.data.gov.uk/doc/local-authority/30UN,Area 3 - Parks/Leyland East West,Grounds Maint Cntrctrs Chgs,4657,Two loads inert waste removed from Worden Park Depot @ 210 per load,24/07/2019,0000447585,360.00,Revenue,Michael Alty,132480
South Ribble Council,http://statistics.data.gov.uk/doc/local-authority/30UN,Area 2 - Waste Transport/Eastern & Central Teams,External Contractors Charges,4570,Vehicle recovery - VU60 HKLE on 20.6.19 from Tinklers Lane Eccleston JFC12740,10/07/2019,0000448022,330.00,Revenue,MILLERS OF LONGTON LTD,00028642
South Ribble Council,http://statistics.data.gov.uk/doc/local-authority/30UN,Area 2 - Waste Transport/Eastern & Central Teams,External Contractors Charges,4570,Vehicle Recovery - YD19 AUM on 20.6.19 from Barmskin Lane  JFC12743,10/07/2019,0000448023,278.00,Revenue,MILLERS OF LONGTON LTD,00028642
South Ribble Council,http://statistics.data.gov.uk/doc/local-authority/30UN,Healthy Communities,Professional Fees,4510,Dance from the Heart 2019 performance act Payment for Dance from the Heart performance Total Price - 1740,03/07/2019,0000448018,"1,392.00",Revenue,Mr Ben Brason,132848
South Ribble Council,http://statistics.data.gov.uk/doc/local-authority/30UN,Area 2 - Waste Transport/Eastern & Central Teams,Other Misc,48EF,To supply and install one Premier Diagnostics Elite Combo II Gas and Smoke analyser. 3 years warranty/calibration Training on installation,19/07/2019,0000448361,"5,300.00",Revenue,MRB Workshop Services Ltd,132635
South Ribble Council,http://statistics.data.gov.uk/doc/local-authority/30UN,HR & Communications,Training Expense-Course Fees,1402,NAME REDACTED AND NAME REDACTED TO FELL AND PROCESS TREES OVER 380 MM DIAMETER 3-5 JULY MYERSCOUGH COLLEGE,26/07/2019,0000448453,"1,130.00",Revenue,MYERSCOUGH COLLEGE,00026453
South Ribble Council,http://statistics.data.gov.uk/doc/local-authority/30UN,Information Services,Peripherals,4241,6777X   Dell Latitude 5590 - 15.6``- Core i5 8250U - 8 GB RAM - 256 GB SSD,31/07/2019,0000448601,647.00,Revenue,MYPREMIER LTD,130091
South Ribble Council,http://statistics.data.gov.uk/doc/local-authority/30UN,Information Services,Peripherals,4241,L5XXX_1513  Latitude 5XXX 3 Year Next Business Day,31/07/2019,0000448601,85.00,Revenue,MYPREMIER LTD,130091
South Ribble Council,http://statistics.data.gov.uk/doc/local-authority/30UN,Information Services,Peripherals,4241,Delivery,31/07/2019,0000448601,10.00,Revenue,MYPREMIER LTD,130091
South Ribble Council,http://statistics.data.gov.uk/doc/local-authority/30UN,Environmental Health,Other Misc,4851,Spitz Marquee 6 x 6 (36 Sq Metres) Delivery & Collection to go with Leyland Festival -per NAME REDACTED.,05/07/2019,0000448123,360.00,Revenue,NATIONWIDE MARQUEE HIRE LTD,130006
South Ribble Council,http://statistics.data.gov.uk/doc/local-authority/30UN,Development Enterprise & Comm Mgnt,Other Misc,4851,Provision of 3 Spitz marquee 3 x 3 for the Try Athlon event on 13th July 2019. Including delivery and collection,26/07/2019,0000448486,539.25,Revenue,NATIONWIDE MARQUEE HIRE LTD,130006
South Ribble Council,http://statistics.data.gov.uk/doc/local-authority/30UN,Area 2 - Waste Transport/Eastern & Central Teams,External Contractors Charges,4570,SERVICE WASH PJ62 UCM JFC12608,12/07/2019,0000448267,65.00,Revenue,NAYLORS TRANSPORT (LEYLAND) ltd,00114828
South Ribble Council,http://statistics.data.gov.uk/doc/local-authority/30UN,Area 2 - Waste Transport/Eastern & Central Teams,External Contractors Charges,4570,SERVICE WASH VX18 KLC JFC12611,12/07/2019,0000448267,65.00,Revenue,NAYLORS TRANSPORT (LEYLAND) ltd,00114828
South Ribble Council,http://statistics.data.gov.uk/doc/local-authority/30UN,Area 2 - Waste Transport/Eastern & Central Teams,External Contractors Charges,4570,SERVICE WASH VO65 KPX JFC12612,12/07/2019,0000448267,65.00,Revenue,NAYLORS TRANSPORT (LEYLAND) ltd,00114828
South Ribble Council,http://statistics.data.gov.uk/doc/local-authority/30UN,Area 2 - Waste Transport/Eastern & Central Teams,External Contractors Charges,4570,SERVICE WASH VO65 KRD JFC12615,12/07/2019,0000448267,65.00,Revenue,NAYLORS TRANSPORT (LEYLAND) ltd,00114828
South Ribble Council,http://statistics.data.gov.uk/doc/local-authority/30UN,Area 2 - Waste Transport/Eastern & Central Teams,External Contractors Charges,4570,SERVICE WASH VO65 KPY JFC12631,12/07/2019,0000448267,65.00,Revenue,NAYLORS TRANSPORT (LEYLAND) ltd,00114828
South Ribble Council,http://statistics.data.gov.uk/doc/local-authority/30UN,Area 2 - Waste Transport/Eastern & Central Teams,External Contractors Charges,4570,SERVICE WASH VO65 KPZ JFC12632,12/07/2019,0000448267,65.00,Revenue,NAYLORS TRANSPORT (LEYLAND) ltd,00114828
South Ribble Council,http://statistics.data.gov.uk/doc/local-authority/30UN,Environmental Health,Contractors Charges 5,5310,Funeral NAME REDACTED per NAME REDACTED.,19/07/2019,0000448349,"1,150.00",Revenue,NAME REDACTED,130840
South Ribble Council,http://statistics.data.gov.uk/doc/local-authority/30UN,Democratic Services,Other Misc,4421,USE OF VENUE FOR THE EUROPEAN ELECTION ON THURSDAY 23 MAY 2019.  ACCESS IS REQUIRED FROM 6:15 AM UNTIL 10.15 PM.,12/07/2019,0000447530,325.50,Revenue,NEW LONGTON VILLAGE HALL,00080088
South Ribble Council,http://statistics.data.gov.uk/doc/local-authority/30UN,Regeneration,Other Misc,4861,Other Misc,31/07/2019,0000448446,"1,500.00",Revenue,NAME REDACTED,131699
South Ribble Council,http://statistics.data.gov.uk/doc/local-authority/30UN,Scrutiny,Training Expense-Course Fees,1406,Organisation for Scrutiny Committee Training Evening of - Tuesday 25th June 2019 with Dr Steph Snape,24/07/2019,0000448242,625.00,Revenue,NORTH WEST EMPLOYERS,00029829
South Ribble Council,http://statistics.data.gov.uk/doc/local-authority/30UN,Neighbourhood Admin & Support,Operational Furniture & Equip,4010,SCHMIDT MINI SWEEPER WIRE BRUSHES (SWINGO),24/07/2019,0000448385,649.92,Revenue,NORTHERN MUNICIPAL SPARES LTD,00117061
South Ribble Council,http://statistics.data.gov.uk/doc/local-authority/30UN,Customer Contact,Rep & Maint Premises,2020,"Furniture for refurb of Gateway to include Chairs for visitors, benches and coffee tables",17/07/2019,0000447379,"5,558.72",Revenue,Northern Storage & Interiors Ltd,132814
South Ribble Council,http://statistics.data.gov.uk/doc/local-authority/30UN,Area 1 - Penwortham Western Parishes,Professional Fees,4514,DEPLOYMENT OF OFFICERS MAY 2019,24/07/2019,0000448266,"1,190.82",Revenue,NSL LTD,00116868
South Ribble Council,http://statistics.data.gov.uk/doc/local-authority/30UN,Area 1 - Penwortham Western Parishes,Other Misc,4855,CASH COLLECTIONS AND RINGO TRANSACTIONS MAY 2019,24/07/2019,0000448266,323.71,Revenue,NSL LTD,00116868
South Ribble Council,http://statistics.data.gov.uk/doc/local-authority/30UN,Area 1 - Penwortham Western Parishes,Other Misc,4855,RINGO CONVENIENCE CHARGE MAY 2019,24/07/2019,0000448266,210.50,Revenue,NSL LTD,00116868
South Ribble Council,http://statistics.data.gov.uk/doc/local-authority/30UN,Area 1 - Penwortham Western Parishes,Professional Fees,4526,PRICE PER CONTRACTED ITEMISED COLLECTION - OTHER,24/07/2019,0000448266,33.05,Revenue,NSL LTD,00116868
South Ribble Council,http://statistics.data.gov.uk/doc/local-authority/30UN,Information Services,Peripherals,4247,Combined Services for period 01/07/19 - 30/09/19,26/07/2019,0000448482,"2,542.72",Revenue,NVIRON LTD,00028781
South Ribble Council,http://statistics.data.gov.uk/doc/local-authority/30UN,Information Services,Peripherals,4247,Combined Services for period 01/07/19 - 30/09/19,26/07/2019,0000448488,"4,945.15",Revenue,NVIRON LTD,00028781
South Ribble Council,http://statistics.data.gov.uk/doc/local-authority/30UN,HR & Communications,Training Expense-Course Fees,1408,South Ribble Borough Council Health and Wellbeing event.  Tuesday 16th July 2019,26/07/2019,0000448472,"1,200.00",Revenue,OAS LTD OSTEOPOROSIS ASS SERV LTD,00119412
South Ribble Council,http://statistics.data.gov.uk/doc/local-authority/30UN,HR & Communications,Training Expense-Course Fees,1408,FULL DAY AT SOUTH RIBBLE BOROUGH COUNCIL - ON SITE CHAIR MASSAGE/INDIAN MASSAGE. 9:00 - 15:30 ON 16 JULY 2019,19/07/2019,0000448383,261.25,Revenue,On Site Massage Co Ltd,132877
South Ribble Council,http://statistics.data.gov.uk/doc/local-authority/30UN,Area 2 - Waste Transport/Eastern & Central Teams,Materials General,4040,1 X STEERING RACK CE63FJY JFC 12555,24/07/2019,0000448424,342.33,Revenue,Parts Alliance Group Ltd T/A BBC Superfactors,132548
South Ribble Council,http://statistics.data.gov.uk/doc/local-authority/30UN,Area 2 - Waste Transport/Eastern & Central Teams,Materials General,4040,2kg Dry Powder Fire Extinguishers,03/07/2019,0000447978,277.20,Revenue,PENNINE FIRE & SAFETY LIMITED,00117281
South Ribble Council,http://statistics.data.gov.uk/doc/local-authority/30UN,HR & Communications,Training Expense-Course Fees,1408,Fit 4 Jobs - 15 x SRBC F4J Recruits,19/07/2019,0000448235,194.25,Revenue,People Asset Management,132492
South Ribble Council,http://statistics.data.gov.uk/doc/local-authority/30UN,HR & Communications,Training Expense-Course Fees,1408,Management Referral F2F OHA JA 17.06.19,19/07/2019,0000448235,87.00,Revenue,People Asset Management,132492
South Ribble Council,http://statistics.data.gov.uk/doc/local-authority/30UN,Environmental Health,Professional Fees,4522,gov fee,12/07/2019,0000448085,660.00,Revenue,Personnel Checks,132574
South Ribble Council,http://statistics.data.gov.uk/doc/local-authority/30UN,Environmental Health,Professional Fees,4522,admin fee,12/07/2019,0000448085,199.95,Revenue,Personnel Checks,132574
South Ribble Council,http://statistics.data.gov.uk/doc/local-authority/30UN,Property Services,Operational Furniture & Equip,4012,"2019 / 2020 contract for the provision of sanitary services at Moss Side Depot, Bison Place, Leyland",05/07/2019,0000448104,408.27,Revenue,PHS GROUP PLC,00031309
South Ribble Council,http://statistics.data.gov.uk/doc/local-authority/30UN,Property Services,Operational Furniture & Equip,4012,2019 / 2020 contract for the provision of sanitary services at the Civic Centre,05/07/2019,0000448105,982.31,Revenue,PHS GROUP PLC,00031309
South Ribble Council,http://statistics.data.gov.uk/doc/local-authority/30UN,Development Enterprise & Comm Mgnt,Other Misc,4851,Contribution towards marketing and promotion cost for Leyland Festival 2019 @ 500,31/07/2019,0000448451,500.00,Revenue,Potential Unlocked Consulting Ltd,132896
South Ribble Council,http://statistics.data.gov.uk/doc/local-authority/30UN,Information Services,Stationery,4133,"50,000 sheets Evolution Everyday A4 80gm",10/07/2019,0000448186,275.00,Revenue,PREMIER PAPER GROUP LTD,00022606
South Ribble Council,http://statistics.data.gov.uk/doc/local-authority/30UN,Information Services,Stationery,4133,"50,000 sheets Evolution Everyday A4 80gm",31/07/2019,0000448570,290.00,Revenue,PREMIER PAPER GROUP LTD,00022606
South Ribble Council,http://statistics.data.gov.uk/doc/local-authority/30UN,Regeneration,Advertising,4842,"Printing of 2,000 Penwortham Live 2019 Schedules as per quote 3524",12/07/2019,0000448160,265.29,Revenue,PRESTON CITY COUNCIL,00031435
South Ribble Council,http://statistics.data.gov.uk/doc/local-authority/30UN,Regeneration,Advertising,4842,"Printing of 1,200 A5 booklets, 16 page, as per quote number 3558",12/07/2019,0000448162,333.08,Revenue,Preston City Council,131913
South Ribble Council,http://statistics.data.gov.uk/doc/local-authority/30UN,Regeneration,Other Misc,4851,"For the printing of 5,000 Leyland Festival Programmes",26/07/2019,0000448163,416.50,Revenue,Preston City Council,131913
South Ribble Council,http://statistics.data.gov.uk/doc/local-authority/30UN,Property Services,Rep & Maint Premises,2020,Please attend Moss Side Community Centre PR25 1TW to change the locks on all the external doors as discussed with the facilities officer.,24/07/2019,0000448402,258.08,Revenue,PRESTON LOCKS LTD,131222
South Ribble Council,http://statistics.data.gov.uk/doc/local-authority/30UN,Democratic Services,Other Misc,4421,100 X SOUTH RIBBLE - FARINGTON WEST CORRESPONDING NUMBER LISTS,12/07/2019,0000448193,820.55,Revenue,PRINT IMAGE NETWORK LTD,00089199
South Ribble Council,http://statistics.data.gov.uk/doc/local-authority/30UN,Democratic Services,Other Misc,4421,27 X SOUTH RIBBLE - FARINGTON WEST BALLOT BOOKS (JOB NUMBER 5611),17/07/2019,0000448297,885.00,Revenue,PRINT IMAGE NETWORK LTD,00089199
South Ribble Council,http://statistics.data.gov.uk/doc/local-authority/30UN,Democratic Services,Other Misc,4422,800 X SOUTH RIBBLE FARINGTON WEST POSTAL VOTE PACKS ( JOB NUMBER 5612),17/07/2019,0000448298,"2,009.00",Revenue,PRINT IMAGE NETWORK LTD,00089199
South Ribble Council,http://statistics.data.gov.uk/doc/local-authority/30UN,Information Services,Postage,4292,Blue ink 789-BL,05/07/2019,0000448146,334.94,Revenue,Purchase Power,00093923
South Ribble Council,http://statistics.data.gov.uk/doc/local-authority/30UN,Information Services,Postage,4292,P & P charge,05/07/2019,0000448146,9.95,Revenue,Purchase Power,00093923
South Ribble Council,http://statistics.data.gov.uk/doc/local-authority/30UN,Information Services,Postage,4292,,05/07/2019,0000448146,2.78,Revenue,Purchase Power,00093923
South Ribble Council,http://statistics.data.gov.uk/doc/local-authority/30UN,Information Services,Postage,4292,,05/07/2019,0000448146,1.04,Revenue,Purchase Power,00093923
South Ribble Council,http://statistics.data.gov.uk/doc/local-authority/30UN,Information Services,Postage,4292,,05/07/2019,0000448146,1.94,Revenue,Purchase Power,00093923
South Ribble Council,http://statistics.data.gov.uk/doc/local-authority/30UN,Housing,Cap Grant- Improve Grants,C570,Supply and install new COMPOSITE door as per srbc spec to accommodate steeper door opening system as per quote supplied of 1154.00 ,31/07/2019,0000448574,"1,154.00",Revenue,Raymond Wood Commercial Ltd T/A LDG Contracts,132127
South Ribble Council,http://statistics.data.gov.uk/doc/local-authority/30UN,Area 3 - Parks/Leyland East West,Other Misc,4851,Set up water supply for Leyland Festival on the 15th June and remove. 3x Stand Pipes required.,10/07/2019,0000447818,300.00,Revenue,RED ROSE BUILDING MAINTENANCE,00085410
South Ribble Council,http://statistics.data.gov.uk/doc/local-authority/30UN,Property Services,Rep & Maint Premises,2020,"Please attend ADDRESS REDACTED, replace the broken road gulley to the front of the property, Connect road gulley to the surface water drains",26/07/2019,0000448435,"1,200.00",Revenue,RED ROSE BUILDING MAINTENANCE,00085410
South Ribble Council,http://statistics.data.gov.uk/doc/local-authority/30UN,Property Services,Rep & Maint Premises,2020,materials,26/07/2019,0000448435,"1,000.00",Revenue,RED ROSE BUILDING MAINTENANCE,00085410
South Ribble Council,http://statistics.data.gov.uk/doc/local-authority/30UN,Homelessness,Contractors Charges 5,5311,"OSM rent July, August and September 2019",05/07/2019,0000447931,"5,624.90",Revenue,REDDY & CO,00108177
South Ribble Council,http://statistics.data.gov.uk/doc/local-authority/30UN,Environmental Health,Subs to Statutory Bodies,4720,EHL Annual Subscription for 2019/20.,19/07/2019,0000448342,250.00,Revenue,Ribble Valley Borough Council,131651
South Ribble Council,http://statistics.data.gov.uk/doc/local-authority/30UN,HR & Communications,Training Expense-Course Fees,1402,EMAQ SUBSCRIPTION FOR TECHNICAL INFORMATION AND 6 SEMINAR PLACES -  ENVIRONMENTAL HEALTH,24/07/2019,0000448220,"1,372.00",Revenue,RICARDO-AEA LIMITED,130794
South Ribble Council,http://statistics.data.gov.uk/doc/local-authority/30UN,Information Services,Stationery,413A,,26/07/2019,0000448526,267.92,Revenue,RICOH (UK) LTD,00082976
South Ribble Council,http://statistics.data.gov.uk/doc/local-authority/30UN,Information Services,Lease Rental Charges,4036,,26/07/2019,0000448526,333.20,Revenue,RICOH (UK) LTD,00082976
South Ribble Council,http://statistics.data.gov.uk/doc/local-authority/30UN,Area 3 - Parks/Leyland East West,Grounds Maint Cntrctrs Chgs,4657,20T top soil delivered to Worden Park Leyland as per your quotation,24/07/2019,0000448409,437.44,Revenue,RIGBY TAYLOR LTD,00033145
South Ribble Council,http://statistics.data.gov.uk/doc/local-authority/30UN,Area 3 - Parks/Leyland East West,Materials General,4040,Crossbar               1 x   2L @65.00 Trustee amenity   30 x 5L @27.00,24/07/2019,0000448410,291.66,Revenue,RIGBY TAYLOR LTD,00033145
South Ribble Council,http://statistics.data.gov.uk/doc/local-authority/30UN,Area 3 - Parks/Leyland East West,Materials General,4040,Crossbar               1 x   2L @65.00 Trustee amenity   30 x 5L @27.00,24/07/2019,0000448410,583.34,Revenue,RIGBY TAYLOR LTD,00033145
South Ribble Council,http://statistics.data.gov.uk/doc/local-authority/30UN,Property Services,Other Misc,4851,"Management of road closure for Leyland Festival Parade on 15th June 2019 Includes cost of marshalling the parade @ 5,000",26/07/2019,0000447932,"4,300.00",Revenue,Road Safety Services LTD,131989
South Ribble Council,http://statistics.data.gov.uk/doc/local-authority/30UN,HR & Communications,Professional Fees,4520,SRBC Staff Awards Video 2019 Two half days over Monday 1st & Tuesday 2nd July 2019,19/07/2019,0000448198,450.00,Revenue,ROLAND TURNER,130386
South Ribble Council,http://statistics.data.gov.uk/doc/local-authority/30UN,Democratic Services,Other Misc,4422,"18/05/2019 - Response Plus Service 7,212 Items",12/07/2019,0000447360,"3,714.20",Revenue,ROYAL MAIL GROUP PLC,00033543
South Ribble Council,http://statistics.data.gov.uk/doc/local-authority/30UN,Democratic Services,Other Misc,4422,18.05.2019 - Respond Plus Services 28 Items,12/07/2019,0000447360,13.17,Revenue,ROYAL MAIL GROUP PLC,00033543
South Ribble Council,http://statistics.data.gov.uk/doc/local-authority/30UN,Democratic Services,Other Misc,4422,ELECTION POSTAL VOTE RETURN POSTAGE (EUROPEAN),12/07/2019,0000447488,"1,363.74",Revenue,ROYAL MAIL GROUP PLC,00033543
South Ribble Council,http://statistics.data.gov.uk/doc/local-authority/30UN,Democratic Services,Other Misc,4422,TIMED DELIVERY - EURO ELECTIONS 2019,12/07/2019,0000447998,151.00,Revenue,ROYAL MAIL GROUP PLC,00033543
South Ribble Council,http://statistics.data.gov.uk/doc/local-authority/30UN,Democratic Services,Other Misc,4422,POSTAL VOTE ADDITIONAL SELECTIONS - EUROPEAN ELECTIONS 2019,12/07/2019,0000447998,16.65,Revenue,ROYAL MAIL GROUP PLC,00033543
South Ribble Council,http://statistics.data.gov.uk/doc/local-authority/30UN,Democratic Services,Other Misc,4422,POSTAL VOTE LICENCE FEE - EURO ELECTIONS 2019,12/07/2019,0000447998,668.00,Revenue,ROYAL MAIL GROUP PLC,00033543
South Ribble Council,http://statistics.data.gov.uk/doc/local-authority/30UN,Democratic Services,Other Misc,4422,RESPONSE PLUS SERVICE - EURO 2019 - 3 ITEMS = 3.11,12/07/2019,0000447999,3.11,Revenue,ROYAL MAIL GROUP PLC,00033543
South Ribble Council,http://statistics.data.gov.uk/doc/local-authority/30UN,Democratic Services,Other Misc,4422,"Borough Election 2019: TIMED DELIVERY, POSTAL VOTING ADD'L SLECTIONS, RESPONSE PLUS SERVICE, POSTAL VOTE LICENCE FEE",12/07/2019,0000447999,"1,000.80",Revenue,ROYAL MAIL GROUP PLC,00033543
South Ribble Council,http://statistics.data.gov.uk/doc/local-authority/30UN,Chief Executive`s Management,Other Misc,4851,OTHER SAME DAY SERVICES (REFJ46160265 26 MAY 2019),31/07/2019,0000448351,41.29,Revenue,ROYAL MAIL GROUP PLC,00033543
South Ribble Council,http://statistics.data.gov.uk/doc/local-authority/30UN,Chief Executive`s Management,Other Misc,4851,OTHER SAME DAY SERVICES (REF J46160267 26 MAY 2019),31/07/2019,0000448351,104.08,Revenue,ROYAL MAIL GROUP PLC,00033543
South Ribble Council,http://statistics.data.gov.uk/doc/local-authority/30UN,Chief Executive`s Management,Other Misc,4422,INTERNATIONAL STANDARD ON ACCOUNT X 5 ITEMS  = 7.50 BUSINESS MAIL ADVANCED 1C UNSORTED X 325 ITEMS = 162.28,31/07/2019,0000448351,162.28,Revenue,ROYAL MAIL GROUP PLC,00033543
South Ribble Council,http://statistics.data.gov.uk/doc/local-authority/30UN,Chief Executive`s Management,Other Misc,4422,"BUSINESS MAIL ADVANCED 1C UNSORTED (FARINGTON WEST), BUSINESS MAIL ADVANCED 1C UNSORTED (FARINGTON 2ND)",31/07/2019,0000448351,326.34,Revenue,ROYAL MAIL GROUP PLC,00033543
South Ribble Council,http://statistics.data.gov.uk/doc/local-authority/30UN,Chief Executive`s Management,Other Misc,4422,exempt item,31/07/2019,0000448351,7.50,Revenue,ROYAL MAIL GROUP PLC,00033543
South Ribble Council,http://statistics.data.gov.uk/doc/local-authority/30UN,Area 2 - Waste Transport/Eastern & Central Teams,External Contractors Charges,4570,SPEC REPAIR PO13UUM JFC 12912,31/07/2019,0000448564,350.00,Revenue,RTS Muni,132454
South Ribble Council,http://statistics.data.gov.uk/doc/local-authority/30UN,Property Services,Energy Costs,2304,3/5/19 to 3/6/,24/07/2019,0000448415,464.86,Revenue,SCOTTISH HYDRO ELECTRIC,130051
South Ribble Council,http://statistics.data.gov.uk/doc/local-authority/30UN,Property Services,Energy Costs,2307,CCL,24/07/2019,0000448415,25.40,Revenue,SCOTTISH HYDRO ELECTRIC,130051
South Ribble Council,http://statistics.data.gov.uk/doc/local-authority/30UN,Property Services,Energy Costs,2304,4/6/19 to 3/7/19,24/07/2019,0000448416,458.42,Revenue,SCOTTISH HYDRO ELECTRIC,130051
South Ribble Council,http://statistics.data.gov.uk/doc/local-authority/30UN,Property Services,Energy Costs,2307,CCL,24/07/2019,0000448416,23.97,Revenue,SCOTTISH HYDRO ELECTRIC,130051
South Ribble Council,http://statistics.data.gov.uk/doc/local-authority/30UN,Property Services,Energy Costs,2304,31/3/19 to 26/6/19,24/07/2019,0000448419,544.53,Revenue,SCOTTISH HYDRO ELECTRIC,130051
South Ribble Council,http://statistics.data.gov.uk/doc/local-authority/30UN,Property Services,Energy Costs,2307,CCL,24/07/2019,0000448419,51.03,Revenue,SCOTTISH HYDRO ELECTRIC,130051
South Ribble Council,http://statistics.data.gov.uk/doc/local-authority/30UN,Property Services,Energy Costs,2303,1/6/19 to 30/6/19,26/07/2019,0000448501,"2,925.76",Revenue,SCOTTISH HYDRO ELECTRIC,130051
South Ribble Council,http://statistics.data.gov.uk/doc/local-authority/30UN,Property Services,Energy Costs,2307,CCL,26/07/2019,0000448501,224.17,Revenue,SCOTTISH HYDRO ELECTRIC,130051
South Ribble Council,http://statistics.data.gov.uk/doc/local-authority/30UN,Property Services,Energy Costs,2303,1/6/19 to 30/6/19,26/07/2019,0000448508,"1,530.70",Revenue,SCOTTISH HYDRO ELECTRIC,130051
South Ribble Council,http://statistics.data.gov.uk/doc/local-authority/30UN,Property Services,Energy Costs,2307,CCL,26/07/2019,0000448508,125.65,Revenue,SCOTTISH HYDRO ELECTRIC,130051
South Ribble Council,http://statistics.data.gov.uk/doc/local-authority/30UN,Property Services,Energy Costs,2303,1/6/19 to 30/6/19,26/07/2019,0000448509,868.31,Revenue,SCOTTISH HYDRO ELECTRIC,130051
South Ribble Council,http://statistics.data.gov.uk/doc/local-authority/30UN,Property Services,Energy Costs,2307,CCL,26/07/2019,0000448509,67.10,Revenue,SCOTTISH HYDRO ELECTRIC,130051
South Ribble Council,http://statistics.data.gov.uk/doc/local-authority/30UN,Information Services,Peripherals,4245,"Option 2 - Battery Replacement - Weekend Hours 3420.00 and Option 3 - Battery Replacement - Dialog 100ER 322.00, as per quote 31634",31/07/2019,0000448597,"2,242.00",Revenue,SECURE POWER LTD,131336
South Ribble Council,http://statistics.data.gov.uk/doc/local-authority/30UN,Information Services,Professional Fees,4520,Shredding of Confidential Waste 2019/20,03/07/2019,0000448064,297.36,Revenue,SHRED-IT LTD,00109134
South Ribble Council,http://statistics.data.gov.uk/doc/local-authority/30UN,Information Services,Professional Fees,4520,Shredding of Confidential Waste 2019/20,03/07/2019,0000448065,324.39,Revenue,SHRED-IT LTD,00109134
South Ribble Council,http://statistics.data.gov.uk/doc/local-authority/30UN,Information Services,Professional Fees,4520,Shredding of Confidential Waste 2019/20,03/07/2019,0000448066,428.56,Revenue,SHRED-IT LTD,00109134
South Ribble Council,http://statistics.data.gov.uk/doc/local-authority/30UN,Information Services,Professional Fees,4520,Shredding of Confidential Waste 2019/20,03/07/2019,0000448069,544.32,Revenue,SHRED-IT LTD,00109134
South Ribble Council,http://statistics.data.gov.uk/doc/local-authority/30UN,Development Enterprise & Comm Mgnt,Other Misc,4851,Banners PVC banners with eyelets 24  x Leyland Festival sponsor banners from PDF artwork supplied at 22.00 each plus VAT Delivery @ 15.00,03/07/2019,0000447943,543.00,Revenue,SIGNCRAFT,130512
South Ribble Council,http://statistics.data.gov.uk/doc/local-authority/30UN,Development Enterprise & Comm Mgnt,Other Misc,4851,PVC banners with eyelets 10 x Leyland Festival banners from PDF artwork supplied at 34.00 each plus VAT Delivery @ 15.00,19/07/2019,0000448151,355.00,Revenue,SIGNCRAFT,130512
South Ribble Council,http://statistics.data.gov.uk/doc/local-authority/30UN,Development Enterprise & Comm Mgnt,Clothing- Uniforms & Laundry,4410,Please supply printed visi vests The amount is 500,10/07/2019,0000447773,446.50,Revenue,SMART IMAGE WORKWEAR,00031503
South Ribble Council,http://statistics.data.gov.uk/doc/local-authority/30UN,Information Services,Peripherals,4248,"BlackBerry Enterprise Mobility Suite 30/06/19 - 29/06/20, as per quote OVREEAO1ROPP V3",05/07/2019,0000448171,"16,914.10",Revenue,SOFTCAT LIMITED,130963
South Ribble Council,http://statistics.data.gov.uk/doc/local-authority/30UN,Shared Financial Services,Balance Sheet,0030,mothly des from payroll,05/07/2019,0000448111,"2,295.00",Revenue,SOUTH RIBBLE CONSERVATIVE FUND,00119483
South Ribble Council,http://statistics.data.gov.uk/doc/local-authority/30UN,Shared Financial Services,Balance Sheet,0030,monthly deds from payroll,05/07/2019,0000448113,"1,890.72",Revenue,SOUTH RIBBLE LABOUR PARTY LOCAL GOVERNM,00120663
South Ribble Council,http://statistics.data.gov.uk/doc/local-authority/30UN,Area 2 - Waste Transport/Eastern & Central Teams,Materials General,4040,2 X BLOCK - BIN 1037 6 X ROLLERS BIN 1268,10/07/2019,0000448053,"1,054.50",Revenue,SPALDINGS,00070849
South Ribble Council,http://statistics.data.gov.uk/doc/local-authority/30UN,Area 2 - Waste Transport/Eastern & Central Teams,Materials General,4040,9 X BLAZE BIN 1265,24/07/2019,0000448270,193.95,Revenue,SPALDINGS,00070849
South Ribble Council,http://statistics.data.gov.uk/doc/local-authority/30UN,Area 2 - Waste Transport/Eastern & Central Teams,Materials General,4040,2 X BLADE BLOCKS BIN 1272,24/07/2019,0000448270,242.50,Revenue,SPALDINGS,00070849
South Ribble Council,http://statistics.data.gov.uk/doc/local-authority/30UN,Area 2 - Waste Transport/Eastern & Central Teams,Materials General,4040,5 X PIVOT ARM PINS BIN 1132,24/07/2019,0000448270,132.75,Revenue,SPALDINGS,00070849
South Ribble Council,http://statistics.data.gov.uk/doc/local-authority/30UN,Area 2 - Waste Transport/Eastern & Central Teams,Materials General,4040,2 X RIGHT HAND ROLLER SUPPORT BIN 1276,24/07/2019,0000448270,58.00,Revenue,SPALDINGS,00070849
South Ribble Council,http://statistics.data.gov.uk/doc/local-authority/30UN,Area 2 - Waste Transport/Eastern & Central Teams,Materials General,4040,2 X LEFT HAND ROLLER SUPPORT BIN 1277,24/07/2019,0000448270,58.00,Revenue,SPALDINGS,00070849
South Ribble Council,http://statistics.data.gov.uk/doc/local-authority/30UN,Area 2 - Waste Transport/Eastern & Central Teams,Materials General,4040,6 X SPACERS BIN 1266,24/07/2019,0000448270,75.00,Revenue,SPALDINGS,00070849
South Ribble Council,http://statistics.data.gov.uk/doc/local-authority/30UN,Area 2 - Waste Transport/Eastern & Central Teams,Materials General,4040,2 X BOTTOM BLOCKS BIN 1270  X PLATE SCREWS BIN 1114,31/07/2019,0000448619,516.00,Revenue,SPALDINGS,00070849
South Ribble Council,http://statistics.data.gov.uk/doc/local-authority/30UN,Planning,Operational Furniture & Equip,4010,"Title: A Neighbours Guide on How to Comment Size: A5, 8pp Printed 4 colour process throughout, 150gsm gloss art paper Finishing: Wire",03/07/2019,0000448050,355.00,Revenue,SPRINTPRINT (PRESTON),131207
South Ribble Council,http://statistics.data.gov.uk/doc/local-authority/30UN,Healthy Communities,Professional Fees,4510,"To supply filming, editing services and PA system for the South Ribble Sports Awards 2019 total cost 3,675.00",24/07/2019,0000448425,"3,675.00",Revenue,STANLEY ROAD FILM AND MEDIA LTD,131214
South Ribble Council,http://statistics.data.gov.uk/doc/local-authority/30UN,Neighbourhood Admin & Support,Materials General,4040,"BLACK SACKS `KEEP SOUTH RIBBLE TIDY` white - 455 x 735 x 865mm M1A1 40,000 @ 65.65 per 1000 Improved spec - NAME REDACTED",03/07/2019,0000448035,"1,526.36",Revenue,Stevenage Packaging Ltd,132780
South Ribble Council,http://statistics.data.gov.uk/doc/local-authority/30UN,Neighbourhood Admin & Support,Materials General,4040,"BLACK SACKS `KEEP SOUTH RIBBLE TIDY` white - 455 x 735 x 865mm M1A1 40,000 @ 65.65 per 1000 Improved spec - NAME REDACTED",03/07/2019,0000448055,"1,411.48",Revenue,Stevenage Packaging Ltd,132780
South Ribble Council,http://statistics.data.gov.uk/doc/local-authority/30UN,Property Services,Rents,2401,"2019 / 2020 rental fees for Forward industrial estate, Talbot Road, Leyland PR25 2ZJ. Property Ref 2710/081",03/07/2019,0000448115,"16,147.50",Revenue,STONEWELL PROPERTY COMPANY LTD,00118138
South Ribble Council,http://statistics.data.gov.uk/doc/local-authority/30UN,Property Services,Rents,2401,less qtr charge,03/07/2019,0000448115,"-2,850.00",Revenue,STONEWELL PROPERTY COMPANY LTD,00118138
South Ribble Council,http://statistics.data.gov.uk/doc/local-authority/30UN,Property Services,Rep & Maint Premises,2020,Annual Contract for 2019/2020 for the moveable walls x 2  Moveo 2 service visits per year  in the Civic Suite ref SNO-Q  M0173  dated 20.2.2019,03/07/2019,0000448047,500.00,Revenue,STYLE MOVEABLE PARTITION SPECIALISTS,00119917
South Ribble Council,http://statistics.data.gov.uk/doc/local-authority/30UN,Area 2 - Waste Transport/Eastern & Central Teams,External Contractors Charges,4570,"Empty and return General Waste Skip (20 Yard) from Unit 81 Bison Place, Moss Side, Leyland, PR26 7QR",10/07/2019,0000447698,120.00,Revenue,SUEZ  RECYCLING AND REC UK LTD 80005291,00038920
South Ribble Council,http://statistics.data.gov.uk/doc/local-authority/30UN,Area 2 - Waste Transport/Eastern & Central Teams,External Contractors Charges,4570,"Empty and return General Waste Skip (20 Yard) from Unit 81 Bison Place, Moss Side, Leyland, PR26 7QR.",10/07/2019,0000447698,120.00,Revenue,SUEZ  RECYCLING AND REC UK LTD 80005291,00038920
South Ribble Council,http://statistics.data.gov.uk/doc/local-authority/30UN,Area 2 - Waste Transport/Eastern & Central Teams,External Contractors Charges,4570,"Empty and return General Waste Skip (20 Yard) from Unit 81 Bison Place, Moss Side, Leyland, PR26 7QR.",10/07/2019,0000447698,120.00,Revenue,SUEZ  RECYCLING AND REC UK LTD 80005291,00038920
South Ribble Council,http://statistics.data.gov.uk/doc/local-authority/30UN,Housing,Cap Expend Other,C750,DFG WORKS BATHROOM AT ADDRESS REDACTED AS PER 50% OF QUOTE OF 4786.50- YOUR HOUSING GROUP  50% 2393.25,31/07/2019,0000448573,"2,100.75",Revenue,T F Jones Property Services Ltd,132720
South Ribble Council,http://statistics.data.gov.uk/doc/local-authority/30UN,Area 2 - Waste Transport/Eastern & Central Teams,Materials General,4040,1 bin clamp ram VU11 HSZ JFC12837,26/07/2019,0000448538,264.00,Revenue,Taylor Enginering & Fabrications Ltd,132560
South Ribble Council,http://statistics.data.gov.uk/doc/local-authority/30UN,Area 2 - Waste Transport/Eastern & Central Teams,Materials General,4040,1 SOLENOID LEAD VU11 HSZ JFC12837,26/07/2019,0000448538,22.58,Revenue,Taylor Enginering & Fabrications Ltd,132560
South Ribble Council,http://statistics.data.gov.uk/doc/local-authority/30UN,Area 2 - Waste Transport/Eastern & Central Teams,Materials General,4040,carriage,26/07/2019,0000448538,10.65,Revenue,Taylor Enginering & Fabrications Ltd,132560
South Ribble Council,http://statistics.data.gov.uk/doc/local-authority/30UN,Information Services,Consultancy Fees,4541,Monthly retainer service to fulfil SRBC`s requirements 2.5 days per month beginning 1st February 2019 for 6 months,03/07/2019,0000448076,"1,500.00",Revenue,TechAlign,132535
South Ribble Council,http://statistics.data.gov.uk/doc/local-authority/30UN,Information Services,Consultancy Fees,4541,"TALSRBCP005 - BC/DR Interim Infrastructure proposal, as per quote",31/07/2019,0000448522,"4,225.00",Revenue,TechAlign,132535
South Ribble Council,http://statistics.data.gov.uk/doc/local-authority/30UN,Homelessness,Contractors Charges 5,5311,NAME REDACTED costs to date at ADDRESS REDACTED 25/4/19 - 19/6/19,05/07/2019,0000447937,"1,200.00",Revenue,Temporary Housing Solutions Ltd,132118
South Ribble Council,http://statistics.data.gov.uk/doc/local-authority/30UN,Homelessness,Contractors Charges 5,5311,NAME REDACTED placement at ADDRESS REDACTED and damages 365 Costs 514  13/5/19 - 11/6/19,05/07/2019,0000447938,879.00,Revenue,Temporary Housing Solutions Ltd,132118
South Ribble Council,http://statistics.data.gov.uk/doc/local-authority/30UN,Area 2 - Waste Transport/Eastern & Central Teams,Materials General,4040,"1x button station, 1 x near side cover panel, 1x flipper bracket, 1x flipper arm hinge/mounting support bracket, VO65 KRF, NAME REDACTED",24/07/2019,0000448185,"1,660.80",Revenue,TERBERG MATEC UK LTD,00058625
South Ribble Council,http://statistics.data.gov.uk/doc/local-authority/30UN,Area 2 - Waste Transport/Eastern & Central Teams,Materials General,4040,HYDRAULIC RAM PO13UUM JFC 12912,31/07/2019,0000448560,682.74,Revenue,TERBERG MATEC UK LTD,00058625
South Ribble Council,http://statistics.data.gov.uk/doc/local-authority/30UN,Area 2 - Waste Transport/Eastern & Central Teams,Materials General,4040,carriage,31/07/2019,0000448560,16.45,Revenue,TERBERG MATEC UK LTD,00058625
South Ribble Council,http://statistics.data.gov.uk/doc/local-authority/30UN,Property Services,Rep & Maint Premises,2020,"2019 / 2020 annual service contract for the outer, middle & inner bi-part slider, the double power swing door  at the civic centre",10/07/2019,0000448044,528.00,Revenue,THE AUTOMATIC DOOR COMPANY LTD,00108533
South Ribble Council,http://statistics.data.gov.uk/doc/local-authority/30UN,Area 3 - Parks/Leyland East West,Grounds Maint Cntrctrs Chgs,4657,10 litres Earthborn Silicate Primer,10/07/2019,0000448197,52.77,Revenue,The Heritage Store,132437
South Ribble Council,http://statistics.data.gov.uk/doc/local-authority/30UN,Area 3 - Parks/Leyland East West,Grounds Maint Cntrctrs Chgs,4657,20 litres Earthborn White Silicate Masonry Paint,10/07/2019,0000448197,202.11,Revenue,The Heritage Store,132437
South Ribble Council,http://statistics.data.gov.uk/doc/local-authority/30UN,Area 3 - Parks/Leyland East West,Grounds Maint Cntrctrs Chgs,4657,shipping,10/07/2019,0000448197,9.50,Revenue,The Heritage Store,132437
South Ribble Council,http://statistics.data.gov.uk/doc/local-authority/30UN,Property Services,Capital Expenditure,C230,Provision of principal designer duties for the re-roofing of ADDRESS REDACTED as per quotation,03/07/2019,0000447940,750.00,Revenue,The JYM Partnership LLP,132040
South Ribble Council,http://statistics.data.gov.uk/doc/local-authority/30UN,Information Services,Peripherals,4247,100MB Circuit & Cloud - Annual rental for period 02/05/19 - 01/05/20,05/07/2019,0000448120,"2,123.00",Revenue,The Networking People NW (t/a TNP),132331
South Ribble Council,http://statistics.data.gov.uk/doc/local-authority/30UN,Legal,Publications,4142,,31/07/2019,0000448366,528.00,Revenue,THOMSON REUTERS,00034979
South Ribble Council,http://statistics.data.gov.uk/doc/local-authority/30UN,Property Services,Advertising,4842,Please supply the following: 5000 Leyland Market Loyalty Cards 198.00  +  VAT,26/07/2019,0000448523,198.00,Revenue,TOWNSEND PRINT SERVICES LTD,00037170
South Ribble Council,http://statistics.data.gov.uk/doc/local-authority/30UN,Property Services,Advertising,4842,Please supply 20 self inking stamps  218.00  + VAT Please deliver to Leyland Market for the attention of NAME REDACTED,26/07/2019,0000448523,218.00,Revenue,TOWNSEND PRINT SERVICES LTD,00037170
South Ribble Council,http://statistics.data.gov.uk/doc/local-authority/30UN,Housing,Cap Expend Other,C750,"SUPPLY AND INSTALL UPVC DOUBLE GLAZING AS PER TENDER SPECIFICATION FOR 2019 /20 COST 50,000.00",17/07/2019,0000448262,"1,750.00",Revenue,TRADE WINDOWS & CONSERVATORIES,00119823
South Ribble Council,http://statistics.data.gov.uk/doc/local-authority/30UN,Housing,Cap Expend Other,C750,"SUPPLY AND INSTALL UPVC DOUBLE GLAZING AS PER TENDER SPECIFICATION FOR 2019 /20 COST 50,000.00",17/07/2019,0000448313,999.00,Revenue,TRADE WINDOWS & CONSERVATORIES,00119823
South Ribble Council,http://statistics.data.gov.uk/doc/local-authority/30UN,Area 2 - Waste Transport/Eastern & Central Teams,Cap Vehicles,C440,"TRAFALGAR TWIN AXLE TRAILER, KARCHER HDS 1000 DE, 30 METRE RETRACTABLE HOSE REEL, 1000 LITRE WATER TANK ",12/07/2019,0000448257,"15,834.00",Revenue,TRAFALGAR CLEANING EQUIPMENT LTD,00080978
South Ribble Council,http://statistics.data.gov.uk/doc/local-authority/30UN,Development Enterprise & Comm Mgnt,Other Misc,4851,"Leyland Festival, Main stage, PA Package, PA System on PA Wings - Mixing Desk and Playback rack. Gazebo Stage Package",12/07/2019,0000448039,"5,192.50",Revenue,UK Media Events Ltd,132263
South Ribble Council,http://statistics.data.gov.uk/doc/local-authority/30UN,Regeneration,Other Misc,4861,"Buffet for 6th June, delivered to Civic Centre 11.30am, SRBC cold buffet plus extra vegetarian savoury. Assorted sandwiches Beef pie, Sausage roll",31/07/2019,0000448578,"1,942.00",Revenue,UNIVERSITY OF CENTRAL LANCASHIRE,131183
South Ribble Council,http://statistics.data.gov.uk/doc/local-authority/30UN,Property Services,Rep & Maint Premises,2020,"Please supply 1 table top water cooler for the IT section as per NAME REDACTED, contact on TELEPHONE REDACTED for access and delivery",03/07/2019,0000447979,355.00,Revenue,VENDING ENTERPRISES,00101501
South Ribble Council,http://statistics.data.gov.uk/doc/local-authority/30UN,Property Services,Operational Furniture & Equip,4012,2019 / 2020 annual contract for the monthly rental of hot drinks machines at the civic centre including environmental charge.,05/07/2019,0000448109,322.09,Revenue,VENDING ENTERPRISES,00101501
South Ribble Council,http://statistics.data.gov.uk/doc/local-authority/30UN,Democratic Services,Other Expenses,463A,PO raised on Factor incorrectly,19/07/2019,0000447975,950.00,Revenue,VENTBROOK LTD,131218
South Ribble Council,http://statistics.data.gov.uk/doc/local-authority/30UN,Information Services,Peripherals,4247,Jul-19,05/07/2019,0000448139,"2,903.86",Revenue,VODAFONE RE:CABLE & WIRELESS UK,130810
South Ribble Council,http://statistics.data.gov.uk/doc/local-authority/30UN,Information Services,Peripherals,4269,JUNE,05/07/2019,0000448140,676.48,Revenue,VODAFONE RE:CABLE & WIRELESS UK,130810
South Ribble Council,http://statistics.data.gov.uk/doc/local-authority/30UN,Information Services,Peripherals,4247,,05/07/2019,0000448141,"1,258.80",Revenue,VODAFONE RE:CABLE & WIRELESS UK,130810
South Ribble Council,http://statistics.data.gov.uk/doc/local-authority/30UN,Property Services,Water Charges,2511,5/4/19 to 24/6/19,05/07/2019,0000448100,335.75,Revenue,WATER PLUS,00029845
South Ribble Council,http://statistics.data.gov.uk/doc/local-authority/30UN,Chief Executive`s Management,Professional Fees,4510,Professional services from 26 April - 21 May 2019,31/07/2019,0000447593,"2,134.00",Revenue,WEIGHTMANS LLP,00120867
South Ribble Council,http://statistics.data.gov.uk/doc/local-authority/30UN,Chief Executive`s Management,Professional Fees,4510,Professional services on 28 February 2019,24/07/2019,0000447596,270.00,Revenue,WEIGHTMANS LLP,00120867
South Ribble Council,http://statistics.data.gov.uk/doc/local-authority/30UN,Neighbourhood Admin & Support,Capital Expenditure,C230,credited,12/06/2019,0000445993,"6,975.00",Revenue,WILLIAM PYE LTD,00031590
South Ribble Council,http://statistics.data.gov.uk/doc/local-authority/30UN,Area 3 - Parks/Leyland East West,Capital Expenditure,C230,"Improvement to path and entrances at King George V playing field, Penwortham",26/07/2019,0000448226,"30,374.00",Revenue,WILLIAM PYE LTD,00031590
South Ribble Council,http://statistics.data.gov.uk/doc/local-authority/30UN,Area 3 - Parks/Leyland East West,Operational Furniture & Equip,4019,24NO. STAINLESS STEEL PLAQUES,31/07/2019,0000448458,600.00,Revenue,WOODSTOCK SIGNS,00039039
South Ribble Council,http://statistics.data.gov.uk/doc/local-authority/30UN,Area 3 - Parks/Leyland East West,Grounds Maint Cntrctrs Chgs,4657,56 NO. STAINLESS STEEL PLAQUES FOR ORIENTEERING POSTS,24/07/2019,0000448465,955.00,Revenue,WOODSTOCK SIGNS,00039039
South Ribble Council,http://statistics.data.gov.uk/doc/local-authority/30UN,Healthy Communities,Sports Dev Expenses,4894,For the Yoga4Health 5-day training in Manchester from 25-29th September 2019 at a cost of 500.,10/07/2019,0000448152,500.00,Revenue,Yoga in Healthcare Alliance,132888
